Workbook

Sheet Erläuterungen
B3: Ziel der Datei:
C4: Die Datei unterstützt den Träger, das Personalvolumen unabhängig der Stichtage zur Personalbemessung unter Ausschöpfung des Dispositionsspielraums nach § 2 KitaPersV einzusetzen. Mit der Anwendung dieser Excel-Datei lässt sich durch Eingabe der stichtagsrelevanten Daten (Anzahl Kinder, Betreuungsumfänge, Alter) das quartalsbezogene Personalvolumen ermitteln und durch Verteilung der Gesamt-Personalstundenmenge auf die relevanten pädagogischen Fachkräfte der Personaleinsatz den Anforderungen entsprechend steuern. Damit soll ein ressourcenorientierter und bedarfsgerechter Einsatz sowie ein Einsatz der verfügbaren Personalmenge zur Abfederung von Personalengpässen erreicht werden.
C5: In Ergänzung dazu lassen sich - sofern für die Kita zutreffend - Sonderprogramme (Bundes- oder Landesprogramme), mit denen ergänzend auch Personalmittel finanziert werden, übersichtlich verwalten sowie bestimmte Daten aus Auswertungen ablesen.
C7: Die Ziellerreichung setzt voraus, dass a. das Instrument zur Personalsteuerung pro individueller Kindertagesstätte verstanden wird b. der Träger sein finanzaniertes Personal in einer Jahresbetrachtung und unter Ausschöpfung des verfügbaren Korridors von 5 bis maximal 10% der Personalmenge einsetzt und im Jahresmittel ausgleicht c. die konkrete Dienstplangestaltung in der Kindertagesstätte in Abstimmung mit dem Träger nach der Festlegung über dieses Instrument erfolgt.
B8: Erläuterungen zu Funktionen:
C9: 1. Reiter Datenblatt:
C10: Schalter zum Blattschutz und zum Ein- bzw. Ausblenden der Monatsblätter:
C11: Der Blattschutz wird ausschließlich für grundsätzliche Anpassungen (Personalschlüsselanpassungen, neue Vorlage für das kommende Jahr, usw.) durch das MBJS genutzt.
C13: Sollte sich der Personalschlüssel unterjährig verändern, so kann dieser auf dem entsprechenden Monatsreiter durch Benutzung des Schalters „Zellschutz für Personalschlüssel aufheben“ erfolgen.
C15: Das Einblenden weiterer Monatsblätter (es erscheinen weitere Reiter, die zwischen den roten Stichtagen liegen) kann in Landkreisen/kreisfr. Städten von Bedeutung sein, in denen innerhalb des Quartals bei veränderter Einrichtungsbelegung die Finanzierung angepasst wird. ACHTUNG: Nur einzublenden und bearbeiten, wenn sich das zu finanzierende Personal aufgrund veränderter Kinderzahlen für die Monate ebenfalls anpasst!
C18: Die Eingabe relevanter Einrichtungsdaten (Träger, Einrichtung und Namen aller zum Einsatz kommenden pädagogischen Fachkräfte) erfolgt in den gelb hinterlegten Feldern. Wird ergänzend das Geburtsjahr der Fachkräfte eingetragen, wird automatisch das Durchschnittsalter in der Einrichtung ermittelt (Zelle C-75).
C20: 2. Reiter mit Stichtags- bzw. Monatsbezeichnung:
C21: Die roten Monatsreiter entsprechen den Stichtagen; sie müssen mindestens ausgefüllt werden und berechnen die Personalmenge des finanzierten Personals für das kommenden Quartal. Die Steuerung, also die konkrete "Verteilung" der Personalmenge auf die jeweiligen Personen erfolgt im Reiter Personalstunden.
C22: Das Einblenden weiterer Monatsblätter (es erscheinen weitere Reiter, die zwischen den roten Stichtagen liegen) kann in Landkreisen/kreisfr. Städten von Bedeutung sein, in denen innerhalb des Quartals bei veränderter Einrichtungsbelegung die Finanzierung angepasst wird.
C23: Wird durch gesetzliche Anpassung unterjährig ein Personalschlüssel (Krippe, Kiga, Hort) verändert, so erfolgt die Anpassung unter Aufhebung des Zellschutzes auf dem dafür vorgesehenen Reiter (siehe Erläuterung Zeile 13).
C24: Die Felder I-39 und I-42 geben die Möglichkeit, eine regionalspezifische Mehrausstattung (z.B. für kompensatorische Sprachförderung o.ä.), die über den Kostenträger (Jugendamt, Gemeinde) mit der Personalkostenerstattung ausgezahlt wird, einzutragen und somit in die Regelpersonalausstattung einfließen zu lassen.
C26: Sonderprogramme, z.B. Bundes- oder Landesprogramme, die gesondert Personalmittel bereitstellen, werden im Reiter Personalstunden verwaltet und hier nicht erfasst.
C28: Die Reiter Stichtage, Monatsstatistik und Jahresdurchschnitt bilden ergänzende Berechnungen ab, die für bestimmte Auswertungen hilfreich sein können. Die Erkenntnisse und Informationen können für diverse Fragen, u.a. der Personalentwicklung, eine RElevanz erlangen.
C30: 3. Reiter Personalstunden:
C31: Dieser Reiter ist das "Herz" der Datei. Die Schalter oben rechts „leere Eingabezeilen ein- bzw. ausblenden“ erweitern die Eingabefelder und können individuell genutzt werden. Sind im Reiter Datenblatt die pädagogischen Fachkräfte eingetragen, erscheinen sie im oberen Teil in der Reihe der Eintragung.
C33: Der obere Teil (bis Zeile 67) dient zur Darstellung der Verteilung des notwendigen pädagogischen Personals (inklusive pädagogischer Leitungsanteil) in Wochenarbeitsstunden auf die Summe der vorhandenen Mitarbeiter und verdeutlicht die Abweichungen (gewünschte Ausnutzung des Dispositionsspielraums nach §2 KitaPersV !) in den Zeilen 60, 61 und 62.
C35: Ziel der Datei ist, Abweichungen je nach Bedarfslage durch z.B. pädagogische Notwendigkeiten (Projekt, Ausflug, u.ä.) in der Einrichtung oder durch personelle Situationen (Personalausfall) bewusst einzugehen, in der Jahresübersicht darzustellen und durch aktive Steuerung über das Jahr auszugleichen. Dabei ist unterjährig ein Korridor von +/- 10% des notwendigen pädagogischen Personals auszuschöpfen, der immer zum Jahresende wieder auszugleichen ist.
C37: (Erinnerung: alle gelb hinterlegten Felder können individuell beschrieben werden!)
C39: Darstellung der Zahlenwerte:
C40: - sobald ein Wert (Zeilen 60 bis 62) negativ ist, wird dieser rot ausgewiesen.
C41: - Eine Zelle wird rot unterlegt, sobald ein Summenwert (gebildet aus dem notwendigen Personaleinsatz und einem Sonderprogramm) 40 Stunden und damit die übliche tarifliche Wochenarbeitszeit übersteigt.
C47: Die Spalte E im oberen Teil des Datenblatts (regelhafte Personalausstattung nach §10 KitaG) hat keinen Einfluss auf die Berechnung für das laufende Jahr, sie ist lediglich zur Information über vorangegangene Personalstundenverteilung eingefügt. Die Spalte W weist je nach Bearbeitungsstand im Jahr immer den (anteiligen) Jahresarbeitszeitdurchschnitt in Wochenstunden aus.
C49: Die Zeile 64 weist den Quartalswert des Personaleinsatzes (Soll-Ist-Vergleich) aus und stellt den Puffer in Stellenanteilen dar, der für die Folgequartale zum Einsatz gebracht werden muss, um das notwendige pädagogische Personal im Jahresdurchschnitt zu erfüllen.
C51: Die Steuerung von Sonderprogrammen erfolgt ab Zeile 68. Sonderprogramme sind Bundes- oder Landesprogramme, für die für einen bestimmten Zweck gesondert Personalmittel bereitgestellt werden. Hier sind Beispiele (Bundesprogramm Sprach-Kitas, Landesprogramm-Sprachberatung, Konsultationskita des Landes Brandenburg (KOKIB) usw.) aufgeführt, die Bezeichnungen können überschrieben werden.
C53: Die Auswahl der Fachkräfte, die in dem jeweiligen Programm tätig sind, erfolgt individuell. Dazu die Zelle anklicken und dann aus dem Button Drop-Down-Menü die entsprechende Fachkraft auswählen.
C55: Außerdem können die Landesprogramme Kompensatorische Sprachförderung und Zeit für Anleitung (Gutschein zur Ausbildungsanleitung) verwaltet werden. Hierzu ebenfalls das Personal über die Funktion Drop-Down auswählen.
C57: Sollte über die Personalstundeneingabe für Sonderprogramme die Wochenarbeitszeit der jeweiligen Beschäftigten auf mehr als 40 Stunden anwachsen (Summe aus Einsatz oben und Sonderprogramm), wird der Wert des Feld automatisch rot markiert.
C58: Alle im Dokument verfügbaren Anmerkungsspalten sind von Berechnungen/Verknüpfungen ausgenommen und sind daher optional zu nutzen.

Sheet Datenblatt
B2: Grundlage zur Finanzierung des notwendigen pädagogischen Personals
B3: für die jeweilige Kindertagesstätte
B6: Träger: | E6: Gute Wahl
B8: Kindertagesstätte: | E8: Durchblick
O9: ACHTUNG: Nur einzublenden und bearbeiten, wenn das zu finanzierende Personal aufgrund veränderter Kinderzahlen für die Monate angepasst werden muss!
B10: Durchschnittliche Kapazität: | E10: =SUM(Januar!D9,Februar!D9,'01.03.'!D9,April!D9,Mai!D9,'01.06.'!D9,Juli!D9,August!D9,'01.09.'!D9,Oktober!D9,November!D9,Dezember!D9)/12 -> 167 | F10: Kinder | G10: Jahr: | H10: 2016
B12: Personalschlüssel nack KitaG §10
B13: Betreuungsart | G13: Betreuungszeit | H13: Personalschlüssel
B15: Kinderkrippe (KK)
B16: für Kinder im Alter von 0 bis zum vollendeten 3. Lebensjahr | G16: bis 6 h | H16: 0.16
B17: für Kinder im Alter von 0 bis zum vollendeten 3. Lebensjahr | G17: ab 6 h | H17: 0.2
B20: Kindergarten
B21: Kinder im Alter von 3 Jebensjahr bis zum Schuleintritt | G21: bis 6 h | H21: 0.067
B22: Kinder im Alter von 3 Jebensjahr bis zum Schuleintritt | G22: ab 6 h | H22: 0.083
B25: Hort
B26: Grundschulalter | G26: bis 4 h | H26: 0.04
B27: Grundschulalter | G27: ab 4 h | H27: 0.053
B30: Allgemeine Anmerkungen
B36: Mitarbeiter-Übersicht | C36: Geburts- jahr | D36: Alter | E36: Anmerkungen | F36: Spalte1 | G36: Spalte2 | H36: Spalte3 | M36: ACHTUNG: Die Berechnung des Durchschnittsalters bezieht sich lediglich auf das Jahr und hat ausschließlich eine Monitoring-Funktion
B37: Mozart | C37: 1949 | D37: =IF(Tabelle1[[#This Row],[Geburts- jahr]]>1935,$H$10-Tabelle1[[#This Row],[Geburts- jahr]],"") -> 67
B38: Beethoven | C38: 1952 | D38: =IF(Tabelle1[[#This Row],[Geburts- jahr]]>1935,$H$10-Tabelle1[[#This Row],[Geburts- jahr]],"") -> 64
B39: Chopin | C39: 1952 | D39: =IF(Tabelle1[[#This Row],[Geburts- jahr]]>1935,$H$10-Tabelle1[[#This Row],[Geburts- jahr]],"") -> 64
B40: Donizetti | C40: 1953 | D40: =IF(Tabelle1[[#This Row],[Geburts- jahr]]>1935,$H$10-Tabelle1[[#This Row],[Geburts- jahr]],"") -> 63
B41: Bruckner | C41: 1954 | D41: =IF(Tabelle1[[#This Row],[Geburts- jahr]]>1935,$H$10-Tabelle1[[#This Row],[Geburts- jahr]],"") -> 62
B42: Britten | C42: 1954 | D42: =IF(Tabelle1[[#This Row],[Geburts- jahr]]>1935,$H$10-Tabelle1[[#This Row],[Geburts- jahr]],"") -> 62
B43: Händel | C43: 1955 | D43: =IF(Tabelle1[[#This Row],[Geburts- jahr]]>1935,$H$10-Tabelle1[[#This Row],[Geburts- jahr]],"") -> 61
B44: Haydn | C44: 1956 | D44: =IF(Tabelle1[[#This Row],[Geburts- jahr]]>1935,$H$10-Tabelle1[[#This Row],[Geburts- jahr]],"") -> 60
B45: Offenbach | C45: 1956 | D45: =IF(Tabelle1[[#This Row],[Geburts- jahr]]>1935,$H$10-Tabelle1[[#This Row],[Geburts- jahr]],"") -> 60
B46: Rossini | C46: 1958 | D46: =IF(Tabelle1[[#This Row],[Geburts- jahr]]>1935,$H$10-Tabelle1[[#This Row],[Geburts- jahr]],"") -> 58
B47: Ravel | C47: 1958 | D47: =IF(Tabelle1[[#This Row],[Geburts- jahr]]>1935,$H$10-Tabelle1[[#This Row],[Geburts- jahr]],"") -> 58
B48: Salieri | C48: 1959 | D48: =IF(Tabelle1[[#This Row],[Geburts- jahr]]>1935,$H$10-Tabelle1[[#This Row],[Geburts- jahr]],"") -> 57
B49: Verdi | C49: 1959 | D49: =IF(Tabelle1[[#This Row],[Geburts- jahr]]>1935,$H$10-Tabelle1[[#This Row],[Geburts- jahr]],"") -> 57
B50: Vivaldi | C50: 1962 | D50: =IF(Tabelle1[[#This Row],[Geburts- jahr]]>1935,$H$10-Tabelle1[[#This Row],[Geburts- jahr]],"") -> 54
B51: Wagner | C51: 1967 | D51: =IF(Tabelle1[[#This Row],[Geburts- jahr]]>1935,$H$10-Tabelle1[[#This Row],[Geburts- jahr]],"") -> 49
B52: Tschaikowsky | C52: 1969 | D52: =IF(Tabelle1[[#This Row],[Geburts- jahr]]>1935,$H$10-Tabelle1[[#This Row],[Geburts- jahr]],"") -> 47
B53: Puccini | C53: 1972 | D53: =IF(Tabelle1[[#This Row],[Geburts- jahr]]>1935,$H$10-Tabelle1[[#This Row],[Geburts- jahr]],"") -> 44
B54: Sibelius | C54: 1974 | D54: =IF(Tabelle1[[#This Row],[Geburts- jahr]]>1935,$H$10-Tabelle1[[#This Row],[Geburts- jahr]],"") -> 42
B55: Smetana | C55: 1979 | D55: =IF(Tabelle1[[#This Row],[Geburts- jahr]]>1935,$H$10-Tabelle1[[#This Row],[Geburts- jahr]],"") -> 37
B56: Schumann | C56: 1979 | D56: =IF(Tabelle1[[#This Row],[Geburts- jahr]]>1935,$H$10-Tabelle1[[#This Row],[Geburts- jahr]],"") -> 37
B57: Orff | C57: 1979 | D57: =IF(Tabelle1[[#This Row],[Geburts- jahr]]>1935,$H$10-Tabelle1[[#This Row],[Geburts- jahr]],"") -> 37
B58: Pompadour | C58: 1982 | D58: =IF(Tabelle1[[#This Row],[Geburts- jahr]]>1935,$H$10-Tabelle1[[#This Row],[Geburts- jahr]],"") -> 34
B59: Diderot | C59: 1982 | D59: =IF(Tabelle1[[#This Row],[Geburts- jahr]]>1935,$H$10-Tabelle1[[#This Row],[Geburts- jahr]],"") -> 34
B60: Max | C60: 1971 | D60: =IF(Tabelle1[[#This Row],[Geburts- jahr]]>1935,$H$10-Tabelle1[[#This Row],[Geburts- jahr]],"") -> 45
B61: Peter | C61: 1969 | D61: =IF(Tabelle1[[#This Row],[Geburts- jahr]]>1935,$H$10-Tabelle1[[#This Row],[Geburts- jahr]],"") -> 47
B62: Luise | C62: 1993 | D62: =IF(Tabelle1[[#This Row],[Geburts- jahr]]>1935,$H$10-Tabelle1[[#This Row],[Geburts- jahr]],"") -> 23
D63: =IF(Tabelle1[[#This Row],[Geburts- jahr]]>1935,$H$10-Tabelle1[[#This Row],[Geburts- jahr]],"") -> 
D64: =IF(Tabelle1[[#This Row],[Geburts- jahr]]>1935,$H$10-Tabelle1[[#This Row],[Geburts- jahr]],"") -> 
D65: =IF(Tabelle1[[#This Row],[Geburts- jahr]]>1935,$H$10-Tabelle1[[#This Row],[Geburts- jahr]],"") -> 
D66: =IF(Tabelle1[[#This Row],[Geburts- jahr]]>1935,$H$10-Tabelle1[[#This Row],[Geburts- jahr]],"") -> 
D67: =IF(Tabelle1[[#This Row],[Geburts- jahr]]>1935,$H$10-Tabelle1[[#This Row],[Geburts- jahr]],"") -> 
D68: =IF(Tabelle1[[#This Row],[Geburts- jahr]]>1935,$H$10-Tabelle1[[#This Row],[Geburts- jahr]],"") -> 
D69: =IF(Tabelle1[[#This Row],[Geburts- jahr]]>1935,$H$10-Tabelle1[[#This Row],[Geburts- jahr]],"") -> 
D70: =IF(Tabelle1[[#This Row],[Geburts- jahr]]>1935,$H$10-Tabelle1[[#This Row],[Geburts- jahr]],"") -> 
D71: =IF(Tabelle1[[#This Row],[Geburts- jahr]]>1935,$H$10-Tabelle1[[#This Row],[Geburts- jahr]],"") -> 
D72: =IF(Tabelle1[[#This Row],[Geburts- jahr]]>1935,$H$10-Tabelle1[[#This Row],[Geburts- jahr]],"") -> 
D73: =IF(Tabelle1[[#This Row],[Geburts- jahr]]>1935,$H$10-Tabelle1[[#This Row],[Geburts- jahr]],"") -> 
D74: =IF(Tabelle1[[#This Row],[Geburts- jahr]]>1935,$H$10-Tabelle1[[#This Row],[Geburts- jahr]],"") -> 
B75: Durchschnittsalter | C75: =IF(ISERROR(ROUND(SUM(D37:D74)/COUNT(D37:D74),2)),"",ROUND(SUM(D37:D74)/COUNT(D37:D74),2)) -> 50.88

Sheet 01.12.
B2: =Datenblatt!B2 -> Grundlage zur Finanzierung des notwendigen pädagogischen Personals
B3: =Datenblatt!B3 -> für die jeweilige Kindertagesstätte
B6: Träger: | C6: =Datenblatt!E6 -> Gute Wahl | G6: Stichtag: | I6: ="01.12."&Datenblatt!H10-1 -> 01.12.2015
F7: ="Stichtagsmeldung I. Quartal "&RIGHT(I6,4)+1 -> Stichtagsmeldung I. Quartal 2016
B8: Kindertagesstätte: | C8: =Datenblatt!E8 -> Durchblick
B9: Kapazität gemäß Betriebserlaubnis: | D9: 167 | E9: Kinder
B11: vertraglich belegte Plätze nach (KitaG § 1)
B12: Betreuungsart | C12: Betreuungs- zeit | D12: Kinder | E12: Kinder anderer Gemeinden | F12: gesamt | G12: Personal- schlüssel nach (KitaG § 10) | I12: Personal- stellen Soll | K12: Anmerkungen
B13: Kinderkrippe
B14: Kinder im Alter von 0 | C14: bis 6 h | D14: 18 | E14: 0 | F14: =SUM(D14:E14) -> 18 | G14: =Datenblatt!H16 -> 0.16 | I14: =F14*G14 -> 2.88
B15: bis zum vollendeten 3. LJ | C15: ab 6 h | D15: 36 | E15: 3 | F15: =SUM(D15:E15) -> 39 | G15: =Datenblatt!H17 -> 0.2 | I15: =F15*G15 -> 7.8
B16: gesamt | D16: =SUM(D14:D15) -> 54 | E16: =SUM(E14:E15) -> 3 | F16: =SUM(F14:F15) -> 57 | I16: =SUM(I14:I15) -> 10.68
B17: Kindergarten
B18: Kinder im Alter vom | C18: bis 6 h | D18: 29 | E18: 0 | F18: =SUM(D18:E18) -> 29 | G18: =Datenblatt!H21 -> 0.067 | I18: =F18*G18 -> 1.943
B19: 3 LJ bis zum Schuleintritt | C19: ab 6 h | D19: 76 | E19: 2 | F19: =SUM(D19:E19) -> 78 | G19: =Datenblatt!H22 -> 0.083 | I19: =F19*G19 -> 6.474
B20: gesamt | D20: =SUM(D18:D19) -> 105 | E20: =SUM(E18:E19) -> 2 | F20: =SUM(F18:F19) -> 107 | I20: =SUM(I18:I19) -> 8.417
B21: Hort
B22: Kinder im | C22: bis 4 h | D22: 0 | E22: 4 | F22: =SUM(D22:E22) -> 4 | G22: =Datenblatt!H26 -> 0.04 | I22: =F22*G22 -> 0.16
B23: Grundschulalter | C23: ab 4 h | D23: 0 | E23: 0 | F23: =SUM(D23:E23) -> 0 | G23: =Datenblatt!H27 -> 0.053 | I23: =F23*G23 -> 0
B24: gesamt | D24: =SUM(D22:D23) -> 0 | E24: =SUM(E22:E23) -> 4 | F24: =SUM(F22:F23) -> 4 | I24: =SUM(I22:I23) -> 0.16
I25: =I16+I20+I24 -> 19.257
B28: Kinderzahl insgesamt | F28: =F16+F20+F24 -> 168
B29: Kapazität | F29: =D9 -> 167
B30: Über- oder Unterbelegung | F30: =F28-F29 -> 1
D32: Finanziertes Personal gem. belegter Plätze | I32: =I25 -> 19.257
E34: Päd.Leitungsanteil Kita PersV § 5 (2) | I34: =IF(I32>=15,0.5,IF(I32>=10,0.375,IF(I32>=4,0.25,""))) -> 0.5
E37: Zwischensumme | I37: =SUM(I32:I34) -> 19.757
E39: ggf. Mehrausstattung im Zusammenhang mit Finanzierung nach §16(2) KitaG
E42: ggf. Mehrausstattung im Zusammenhang mit Finanzierung nach §16(2) KitaG
D45: Gesamt fin. Personal gem. bel. Plätze (VZ-Stellen - Soll) | I45: =SUM(I36:I44) -> 19.757
B48: sachlich und rechnerisch richtig:
B51: Datum | E51: Unterschrift einer zur Vertretung
E52: berechtigten Person

Sheet Januar (hidden)
B2: =Datenblatt!B2 -> Grundlage zur Finanzierung des notwendigen pädagogischen Personals
B3: =Datenblatt!B3 -> für die jeweilige Kindertagesstätte
B6: Träger: | C6: =Datenblatt!E6 -> Gute Wahl | G6: Stichtag: | I6: ="01.01."&Datenblatt!H10 -> 01.01.2016
F7: ='01.12.'!F7:I8 -> Stichtagsmeldung I. Quartal 2016
B8: Kindertagesstätte: | C8: =Datenblatt!E8 -> Durchblick
B9: Kapazität gemäß Betriebserlaubnis: | D9: 167 | E9: Kinder
B11: vertraglich belegte Plätze nach (KitaG § 1)
B12: Betreuungsart | C12: Betreuungs- zeit | D12: Kinder | E12: Kinder anderer Gemeinden | F12: gesamt | G12: Personal- schlüssel nach (KitaG § 10) | I12: Personal- stellen Soll | K12: Anmerkungen
B13: Kinderkrippe
B14: Kinder im Alter von 0 | C14: bis 6 h | D14: ='01.12.'!D14 -> 18 | E14: ='01.12.'!E14 -> 0 | F14: =SUM(D14:E14) -> 18 | G14: =Datenblatt!H16 -> 0.16 | I14: =F14*G14 -> 2.88
B15: bis zum vollendeten 3. LJ | C15: ab 6 h | D15: ='01.12.'!D15 -> 36 | E15: ='01.12.'!E15 -> 3 | F15: =SUM(D15:E15) -> 39 | G15: =Datenblatt!H17 -> 0.2 | I15: =F15*G15 -> 7.8
B16: gesamt | D16: =SUM(D14:D15) -> 54 | E16: =SUM(E14:E15) -> 3 | F16: =SUM(F14:F15) -> 57 | I16: =SUM(I14:I15) -> 10.68
B17: Kindergarten
B18: Kinder im Alter vom | C18: bis 6 h | D18: ='01.12.'!D18 -> 29 | E18: ='01.12.'!E18 -> 0 | F18: =SUM(D18:E18) -> 29 | G18: =Datenblatt!H21 -> 0.067 | I18: =F18*G18 -> 1.943
B19: 3 LJ bis zum Schuleintritt | C19: ab 6 h | D19: ='01.12.'!D19 -> 76 | E19: ='01.12.'!E19 -> 2 | F19: =SUM(D19:E19) -> 78 | G19: =Datenblatt!H22 -> 0.083 | I19: =F19*G19 -> 6.474
B20: gesamt | D20: =SUM(D18:D19) -> 105 | E20: =SUM(E18:E19) -> 2 | F20: =SUM(F18:F19) -> 107 | I20: =SUM(I18:I19) -> 8.417
B21: Hort
B22: Kinder im | C22: bis 4 h | D22: ='01.12.'!D22 -> 0 | E22: ='01.12.'!E22 -> 4 | F22: =SUM(D22:E22) -> 4 | G22: =Datenblatt!H26 -> 0.04 | I22: =F22*G22 -> 0.16
B23: Grundschulalter | C23: ab 4 h | D23: ='01.12.'!D23 -> 0 | E23: ='01.12.'!E23 -> 0 | F23: =SUM(D23:E23) -> 0 | G23: =Datenblatt!H27 -> 0.053 | I23: =F23*G23 -> 0
B24: gesamt | D24: =SUM(D22:D23) -> 0 | E24: =SUM(E22:E23) -> 4 | F24: =SUM(F22:F23) -> 4 | I24: =SUM(I22:I23) -> 0.16
I25: =I16+I20+I24 -> 19.257
B28: Kinderzahl insgesamt | F28: =F16+F20+F24 -> 168
B29: Kapazität | F29: =D9 -> 167
B30: Über- oder Unterbelegung | F30: =F28-F29 -> 1
D32: Finanziertes Personal gem. belegter Plätze | I32: =I25 -> 19.257
E34: Päd.Leitungsanteil Kita PersV § 5 (2) | I34: =IF(I32>=15,0.5,IF(I32>=10,0.375,IF(I32>=4,0.25,""))) -> 0.5
E37: Zwischensumme | I37: =SUM(I32:I34) -> 19.757
E39: ggf. Mehrausstattung im Zusammenhang mit Finanzierung nach §16(2) KitaG
E42: ggf. Mehrausstattung im Zusammenhang mit Finanzierung nach §16(2) KitaG
D45: Gesamt fin. Personal gem. bel. Plätze (VZ-Stellen) | I45: =SUM(I36:I44) -> 19.757
B48: sachlich und rechnerisch richtig:
B51: Datum | E51: Unterschrift einer zur Vertretung
E52: berechtigten Person

Sheet Februar (hidden)
B2: =Datenblatt!B2 -> Grundlage zur Finanzierung des notwendigen pädagogischen Personals
B3: =Datenblatt!B3 -> für die jeweilige Kindertagesstätte
B6: Träger: | C6: =Datenblatt!E6 -> Gute Wahl | G6: Stichtag: | I6: ="01.02."&Datenblatt!H10 -> 01.02.2016
F7: ='01.12.'!F7:I8 -> Stichtagsmeldung I. Quartal 2016
B8: Kindertagesstätte: | C8: =Datenblatt!E8 -> Durchblick
B9: Kapazität gemäß Betriebserlaubnis: | D9: =Januar!D9 -> 167 | E9: Kinder
B11: vertraglich belegte Plätze nach (KitaG § 1)
B12: Betreuungsart | C12: Betreuungs- zeit | D12: Kinder | E12: Kinder anderer Gemeinden | F12: gesamt | G12: Personal- schlüssel nach (KitaG § 10) | I12: Personal- stellen Soll | K12: Anmerkungen
B13: Kinderkrippe
B14: Kinder im Alter von 0 | C14: bis 6 h | D14: ='01.12.'!D14 -> 18 | E14: ='01.12.'!E14 -> 0 | F14: =SUM(D14:E14) -> 18 | G14: =Januar!G14 -> 0.16 | I14: =F14*G14 -> 2.88
B15: bis zum vollendeten 3. LJ | C15: ab 6 h | D15: ='01.12.'!D15 -> 36 | E15: ='01.12.'!E15 -> 3 | F15: =SUM(D15:E15) -> 39 | G15: =Januar!G15 -> 0.2 | I15: =F15*G15 -> 7.8
B16: gesamt | D16: =SUM(D14:D15) -> 54 | E16: =SUM(E14:E15) -> 3 | F16: =SUM(F14:F15) -> 57 | I16: =SUM(I14:I15) -> 10.68
B17: Kindergarten
B18: Kinder im Alter vom | C18: bis 6 h | D18: ='01.12.'!D18 -> 29 | E18: ='01.12.'!E18 -> 0 | F18: =SUM(D18:E18) -> 29 | G18: =Januar!G18 -> 0.067 | I18: =F18*G18 -> 1.943
B19: 3 LJ bis zum Schuleintritt | C19: ab 6 h | D19: ='01.12.'!D19 -> 76 | E19: ='01.12.'!E19 -> 2 | F19: =SUM(D19:E19) -> 78 | G19: =Januar!G19 -> 0.083 | I19: =F19*G19 -> 6.474
B20: gesamt | D20: =SUM(D18:D19) -> 105 | E20: =SUM(E18:E19) -> 2 | F20: =SUM(F18:F19) -> 107 | I20: =SUM(I18:I19) -> 8.417
B21: Hort
B22: Kinder im | C22: bis 4 h | D22: ='01.12.'!D22 -> 0 | E22: ='01.12.'!E22 -> 4 | F22: =SUM(D22:E22) -> 4 | G22: =Januar!G22 -> 0.04 | I22: =F22*G22 -> 0.16
B23: Grundschulalter | C23: ab 4 h | D23: ='01.12.'!D23 -> 0 | E23: ='01.12.'!E23 -> 0 | F23: =SUM(D23:E23) -> 0 | G23: =Januar!G23 -> 0.053 | I23: =F23*G23 -> 0
B24: gesamt | D24: =SUM(D22:D23) -> 0 | E24: =SUM(E22:E23) -> 4 | F24: =SUM(F22:F23) -> 4 | I24: =SUM(I22:I23) -> 0.16
I25: =I16+I20+I24 -> 19.257
B28: Kinderzahl insgesamt | F28: =F16+F20+F24 -> 168
B29: Kapazität | F29: =D9 -> 167
B30: Über- oder Unterbelegung | F30: =F28-F29 -> 1
D32: Finanziertes Personal gem. belegter Plätze | I32: =I25 -> 19.257
E34: Päd.Leitungsanteil Kita PersVO § 5 (2) | I34: =IF(I32>=15,0.5,IF(I32>=10,0.375,IF(I32>=4,0.25,""))) -> 0.5
E37: Zwischensumme | I37: =SUM(I32:I34) -> 19.757
E39: ggf. Mehrausstattung im Zusammenhang mit Finanzierung nach §16(2) KitaG
E42: ggf. Mehrausstattung im Zusammenhang mit Finanzierung nach §16(2) KitaG
D45: Gesamt fin. Personal gem. bel. Plätze (VZ-Stellen) | I45: =SUM(I36:I44) -> 19.757
B48: sachlich und rechnerisch richtig:
B51: Datum | E51: Unterschrift einer zur Vertretung
E52: berechtigten Person

Sheet 01.03.
B2: =Datenblatt!B2 -> Grundlage zur Finanzierung des notwendigen pädagogischen Personals
B3: =Datenblatt!B3 -> für die jeweilige Kindertagesstätte
B6: Träger: | C6: =Datenblatt!E6 -> Gute Wahl | G6: Stichtag: | I6: ="01.03."&Datenblatt!H10 -> 01.03.2016
F7: ="Stichtagsmeldung II. Quartal "&RIGHT(I6,4) -> Stichtagsmeldung II. Quartal 2016
B8: Kindertagesstätte: | C8: =Datenblatt!E8 -> Durchblick
B9: Kapazität gemäß Betriebserlaubnis: | D9: =Februar!D9 -> 167 | E9: Kinder
B11: vertraglich belegte Plätze nach (KitaG § 1)
B12: Betreuungsart | C12: Betreuungs- zeit | D12: Kinder | E12: Kinder anderer Gemeinden | F12: gesamt | G12: Personal- schlüssel nach (KitaG § 10) | I12: Personal- stellen Soll | K12: Anmerkungen
B13: Kinderkrippe
B14: Kinder im Alter von 0 | C14: bis 6 h | D14: 14 | E14: 0 | F14: =SUM(D14:E14) -> 14 | G14: =Februar!G14 -> 0.16 | I14: =F14*G14 -> 2.24
B15: bis zum vollendeten 3. LJ | C15: ab 6 h | D15: 37 | E15: 2 | F15: =SUM(D15:E15) -> 39 | G15: =Februar!G15 -> 0.2 | I15: =F15*G15 -> 7.8
B16: gesamt | D16: =SUM(D14:D15) -> 51 | E16: =SUM(E14:E15) -> 2 | F16: =SUM(F14:F15) -> 53 | I16: =SUM(I14:I15) -> 10.04
B17: Kindergarten
B18: Kinder im Alter vom | C18: bis 6 h | D18: 30 | E18: 0 | F18: =SUM(D18:E18) -> 30 | G18: =Februar!G18 -> 0.067 | I18: =F18*G18 -> 2.01
B19: 3 LJ bis zum Schuleintritt | C19: ab 6 h | D19: 81 | E19: 4 | F19: =SUM(D19:E19) -> 85 | G19: =Februar!G19 -> 0.083 | I19: =F19*G19 -> 7.055
B20: gesamt | D20: =SUM(D18:D19) -> 111 | E20: =SUM(E18:E19) -> 4 | F20: =SUM(F18:F19) -> 115 | I20: =SUM(I18:I19) -> 9.065
B21: Hort
B22: Kinder im | C22: bis 4 h | D22: 0 | E22: 0 | F22: =SUM(D22:E22) -> 0 | G22: =Februar!G22 -> 0.04 | I22: =F22*G22 -> 0
B23: Grundschulalter | C23: ab 4 h | D23: 0 | E23: 0 | F23: =SUM(D23:E23) -> 0 | G23: =Februar!G23 -> 0.053 | I23: =F23*G23 -> 0
B24: gesamt | D24: =SUM(D22:D23) -> 0 | E24: =SUM(E22:E23) -> 0 | F24: =SUM(F22:F23) -> 0 | I24: =SUM(I22:I23) -> 0
I25: =I16+I20+I24 -> 19.105
B28: Kinderzahl insgesamt | F28: =F16+F20+F24 -> 168
B29: Kapazität | F29: =D9 -> 167
B30: Über- oder Unterbelegung | F30: =F28-F29 -> 1
D32: Finanziertes Personal gem. belegter Plätze | I32: =I25 -> 19.105
E34: Päd.Leitungsanteil Kita PersV § 5 (2) | I34: =IF(I32>=15,0.5,IF(I32>=10,0.375,IF(I32>=4,0.25,""))) -> 0.5
E37: Zwischensumme | I37: =SUM(I32:I34) -> 19.605
E39: ggf. Mehrausstattung im Zusammenhang mit Finanzierung nach §16(2) KitaG
E42: ggf. Mehrausstattung im Zusammenhang mit Finanzierung nach §16(2) KitaG
D45: Gesamt fin. Personal gem. bel. Plätze (VZ-Stellen) | I45: =SUM(I36:I44) -> 19.605
B48: sachlich und rechnerisch richtig:
B51: Datum | E51: Unterschrift einer zur Vertretung
E52: berechtigten Person

Sheet April (hidden)
B2: =Datenblatt!B2 -> Grundlage zur Finanzierung des notwendigen pädagogischen Personals
B3: =Datenblatt!B3 -> für die jeweilige Kindertagesstätte
B6: Träger: | C6: =Datenblatt!E6 -> Gute Wahl | G6: Stichtag: | I6: ="01.04."&Datenblatt!H10 -> 01.04.2016
F7: ='01.03.'!F7:I8 -> Stichtagsmeldung II. Quartal 2016
B8: Kindertagesstätte: | C8: =Datenblatt!E8 -> Durchblick
B9: Kapazität gemäß Betriebserlaubnis: | D9: ='01.03.'!D9 -> 167 | E9: Kinder
B11: vertraglich belegte Plätze nach (KitaG § 1)
B12: Betreuungsart | C12: Betreuungs- zeit | D12: Kinder | E12: Kinder anderer Gemeinden | F12: gesamt | G12: Personal- schlüssel nach (KitaG § 10) | I12: Personal- stellen Soll | K12: Anmerkungen
B13: Kinderkrippe
B14: Kinder im Alter von 0 | C14: bis 6 h | D14: ='01.03.'!D14 -> 14 | E14: ='01.03.'!E14 -> 0 | F14: =SUM(D14:E14) -> 14 | G14: ='01.03.'!G14 -> 0.16 | I14: =F14*G14 -> 2.24
B15: bis zum vollendeten 3. LJ | C15: ab 6 h | D15: ='01.03.'!D15 -> 37 | E15: ='01.03.'!E15 -> 2 | F15: =SUM(D15:E15) -> 39 | G15: ='01.03.'!G15 -> 0.2 | I15: =F15*G15 -> 7.8
B16: gesamt | D16: =SUM(D14:D15) -> 51 | E16: =SUM(E14:E15) -> 2 | F16: =SUM(F14:F15) -> 53 | I16: =SUM(I14:I15) -> 10.04
B17: Kindergarten
B18: Kinder im Alter vom | C18: bis 6 h | D18: ='01.03.'!D18 -> 30 | E18: ='01.03.'!E18 -> 0 | F18: =SUM(D18:E18) -> 30 | G18: ='01.03.'!G18 -> 0.067 | I18: =F18*G18 -> 2.01
B19: 3 LJ bis zum Schuleintritt | C19: ab 6 h | D19: ='01.03.'!D19 -> 81 | E19: ='01.03.'!E19 -> 4 | F19: =SUM(D19:E19) -> 85 | G19: ='01.03.'!G19 -> 0.083 | I19: =F19*G19 -> 7.055
B20: gesamt | D20: =SUM(D18:D19) -> 111 | E20: =SUM(E18:E19) -> 4 | F20: =SUM(F18:F19) -> 115 | I20: =SUM(I18:I19) -> 9.065
B21: Hort
B22: Kinder im | C22: bis 4 h | D22: ='01.03.'!D22 -> 0 | E22: ='01.03.'!E22 -> 0 | F22: =SUM(D22:E22) -> 0 | G22: ='01.03.'!G22 -> 0.04 | I22: =F22*G22 -> 0
B23: Grundschulalter | C23: ab 4 h | D23: ='01.03.'!D23 -> 0 | E23: ='01.03.'!E23 -> 0 | F23: =SUM(D23:E23) -> 0 | G23: ='01.03.'!G23 -> 0.053 | I23: =F23*G23 -> 0
B24: gesamt | D24: =SUM(D22:D23) -> 0 | E24: =SUM(E22:E23) -> 0 | F24: =SUM(F22:F23) -> 0 | I24: =SUM(I22:I23) -> 0
I25: =I16+I20+I24 -> 19.105
B28: Kinderzahl insgesamt | F28: =F16+F20+F24 -> 168
B29: Kapazität | F29: =D9 -> 167
B30: Über- oder Unterbelegung | F30: =F28-F29 -> 1
D32: Finanziertes Personal gem. belegter Plätze | I32: =I25 -> 19.105
E34: Päd.Leitungsanteil Kita PersV § 5 (2) | I34: =IF(I32>=15,0.5,IF(I32>=10,0.375,IF(I32>=4,0.25,""))) -> 0.5
E37: Zwischensumme | I37: =SUM(I32:I34) -> 19.605
E39: ggf. Mehrausstattung im Zusammenhang mit Finanzierung nach §16(2) KitaG
E42: ggf. Mehrausstattung im Zusammenhang mit Finanzierung nach §16(2) KitaG
D45: Gesamt fin. Personal gem. bel. Plätze (VZ-Stellen) | I45: =SUM(I36:I44) -> 19.605
B48: sachlich und rechnerisch richtig:
B51: Datum | E51: Unterschrift einer zur Vertretung
E52: berechtigten Person

Sheet Mai (hidden)
B2: =Datenblatt!B2 -> Grundlage zur Finanzierung des notwendigen pädagogischen Personals
B3: =Datenblatt!B3 -> für die jeweilige Kindertagesstätte
B6: Träger: | C6: =Datenblatt!E6 -> Gute Wahl | G6: Stichtag: | I6: ="01.05."&Datenblatt!H10 -> 01.05.2016
F7: ='01.03.'!F7:I8 -> Stichtagsmeldung II. Quartal 2016
B8: Kindertagesstätte: | C8: =Datenblatt!E8 -> Durchblick
B9: Kapazität gemäß Betriebserlaubnis: | D9: =April!D9 -> 167 | E9: Kinder
B11: vertraglich belegte Plätze nach (KitaG § 1)
B12: Betreuungsart | C12: Betreuungs- zeit | D12: Kinder | E12: Kinder anderer Gemeinden | F12: gesamt | G12: Personal- schlüssel nach (KitaG § 10) | I12: Personal- stellen Soll | K12: Anmerkungen
B13: Kinderkrippe
B14: Kinder im Alter von 0 | C14: bis 6 h | D14: ='01.03.'!D14 -> 14 | E14: ='01.03.'!E14 -> 0 | F14: =SUM(D14:E14) -> 14 | G14: =April!G14 -> 0.16 | I14: =F14*G14 -> 2.24
B15: bis zum vollendeten 3. LJ | C15: ab 6 h | D15: ='01.03.'!D15 -> 37 | E15: ='01.03.'!E15 -> 2 | F15: =SUM(D15:E15) -> 39 | G15: =April!G15 -> 0.2 | I15: =F15*G15 -> 7.8
B16: gesamt | D16: =SUM(D14:D15) -> 51 | E16: =SUM(E14:E15) -> 2 | F16: =SUM(F14:F15) -> 53 | I16: =SUM(I14:I15) -> 10.04
B17: Kindergarten
B18: Kinder im Alter vom | C18: bis 6 h | D18: ='01.03.'!D18 -> 30 | E18: ='01.03.'!E18 -> 0 | F18: =SUM(D18:E18) -> 30 | G18: =April!G18 -> 0.067 | I18: =F18*G18 -> 2.01
B19: 3 LJ bis zum Schuleintritt | C19: ab 6 h | D19: ='01.03.'!D19 -> 81 | E19: ='01.03.'!E19 -> 4 | F19: =SUM(D19:E19) -> 85 | G19: =April!G19 -> 0.083 | I19: =F19*G19 -> 7.055
B20: gesamt | D20: =SUM(D18:D19) -> 111 | E20: =SUM(E18:E19) -> 4 | F20: =SUM(F18:F19) -> 115 | I20: =SUM(I18:I19) -> 9.065
B21: Hort
B22: Kinder im | C22: bis 4 h | D22: ='01.03.'!D22 -> 0 | E22: ='01.03.'!E22 -> 0 | F22: =SUM(D22:E22) -> 0 | G22: =April!G22 -> 0.04 | I22: =F22*G22 -> 0
B23: Grundschulalter | C23: ab 4 h | D23: ='01.03.'!D23 -> 0 | E23: ='01.03.'!E23 -> 0 | F23: =SUM(D23:E23) -> 0 | G23: =April!G23 -> 0.053 | I23: =F23*G23 -> 0
B24: gesamt | D24: =SUM(D22:D23) -> 0 | E24: =SUM(E22:E23) -> 0 | F24: =SUM(F22:F23) -> 0 | I24: =SUM(I22:I23) -> 0
I25: =I16+I20+I24 -> 19.105
B28: Kinderzahl insgesamt | F28: =F16+F20+F24 -> 168
B29: Kapazität | F29: =D9 -> 167
B30: Über- oder Unterbelegung | F30: =F28-F29 -> 1
D32: Finanziertes Personal gem. belegter Plätze | I32: =I25 -> 19.105
E34: Päd.Leitungsanteil Kita PersV § 5 (2) | I34: =IF(I32>=15,0.5,IF(I32>=10,0.375,IF(I32>=4,0.25,""))) -> 0.5
E37: Zwischensumme | I37: =SUM(I32:I34) -> 19.605
E39: ggf. Mehrausstattung im Zusammenhang mit Finanzierung nach §16(2) KitaG
E42: ggf. Mehrausstattung im Zusammenhang mit Finanzierung nach §16(2) KitaG
D45: Gesamt fin. Personal gem. bel. Plätze (VZ-Stellen) | I45: =SUM(I36:I44) -> 19.605
B48: sachlich und rechnerisch richtig:
B51: Datum | E51: Unterschrift einer zur Vertretung
E52: berechtigten Person

Sheet 01.06.
B2: =Datenblatt!B2 -> Grundlage zur Finanzierung des notwendigen pädagogischen Personals
B3: =Datenblatt!B3 -> für die jeweilige Kindertagesstätte
B6: Träger: | C6: =Datenblatt!E6 -> Gute Wahl | G6: Stichtag: | I6: ="01.06."&Datenblatt!H10 -> 01.06.2016
F7: ="Stichtagsmeldung III. Quartal "&RIGHT(I6,4) -> Stichtagsmeldung III. Quartal 2016
B8: Kindertagesstätte: | C8: =Datenblatt!E8 -> Durchblick
B9: Kapazität gemäß Betriebserlaubnis: | D9: =Mai!D9 -> 167 | E9: Kinder
B11: vertraglich belegte Plätze nach (KitaG § 1)
B12: Betreuungsart | C12: Betreuungs- zeit | D12: Kinder | E12: Kinder anderer Gemeinden | F12: gesamt | G12: Personal- schlüssel nach (KitaG § 10) | I12: Personal- stellen Soll | K12: Anmerkungen
B13: Kinderkrippe
B14: Kinder im Alter von 0 | C14: bis 6 h | D14: 11 | E14: 0 | F14: =SUM(D14:E14) -> 11 | G14: =Mai!G14 -> 0.16 | I14: =F14*G14 -> 1.76
B15: bis zum vollendeten 3. LJ | C15: ab 6 h | D15: 33 | E15: 2 | F15: =SUM(D15:E15) -> 35 | G15: =Mai!G15 -> 0.2 | I15: =F15*G15 -> 7
B16: gesamt | D16: =SUM(D14:D15) -> 44 | E16: =SUM(E14:E15) -> 2 | F16: =SUM(F14:F15) -> 46 | I16: =SUM(I14:I15) -> 8.76
B17: Kindergarten
B18: Kinder im Alter vom | C18: bis 6 h | D18: 30 | E18: 0 | F18: =SUM(D18:E18) -> 30 | G18: =Mai!G18 -> 0.067 | I18: =F18*G18 -> 2.01
B19: 3 LJ bis zum Schuleintritt | C19: ab 6 h | D19: 90 | E19: 4 | F19: =SUM(D19:E19) -> 94 | G19: =Mai!G19 -> 0.083 | I19: =F19*G19 -> 7.802
B20: gesamt | D20: =SUM(D18:D19) -> 120 | E20: =SUM(E18:E19) -> 4 | F20: =SUM(F18:F19) -> 124 | I20: =SUM(I18:I19) -> 9.812
B21: Hort
B22: Kinder im | C22: bis 4 h | D22: 0 | E22: 0 | F22: =SUM(D22:E22) -> 0 | G22: =Mai!G22 -> 0.04 | I22: =F22*G22 -> 0
B23: Grundschulalter | C23: ab 4 h | D23: 0 | E23: 0 | F23: =SUM(D23:E23) -> 0 | G23: =Mai!G23 -> 0.053 | I23: =F23*G23 -> 0
B24: gesamt | D24: =SUM(D22:D23) -> 0 | E24: =SUM(E22:E23) -> 0 | F24: =SUM(F22:F23) -> 0 | I24: =SUM(I22:I23) -> 0
I25: =I16+I20+I24 -> 18.572
B28: Kinderzahl insgesamt | F28: =F16+F20+F24 -> 170
B29: Kapazität | F29: =D9 -> 167
B30: Über- oder Unterbelegung | F30: =F28-F29 -> 3
D32: Finanziertes Personal gem. belegter Plätze | I32: =I25 -> 18.572
E34: Päd.Leitungsanteil Kita PersV § 5 (2) | I34: =IF(I32>=15,0.5,IF(I32>=10,0.375,IF(I32>=4,0.25,""))) -> 0.5
E37: Zwischensumme | I37: =SUM(I32:I34) -> 19.072
E39: ggf. Mehrausstattung im Zusammenhang mit Finanzierung nach §16(2) KitaG
E42: ggf. Mehrausstattung im Zusammenhang mit Finanzierung nach §16(2) KitaG
D45: Gesamt fin. Personal gem. bel. Plätze (VZ-Stellen) | I45: =SUM(I36:I44) -> 19.072
B48: sachlich und rechnerisch richtig:
B51: Datum | E51: Unterschrift einer zur Vertretung
E52: berechtigten Person

Sheet Juli (hidden)
B2: =Datenblatt!B2 -> Grundlage zur Finanzierung des notwendigen pädagogischen Personals
B3: =Datenblatt!B3 -> für die jeweilige Kindertagesstätte
B6: Träger: | C6: =Datenblatt!E6 -> Gute Wahl | G6: Stichtag: | I6: ="01.07."&Datenblatt!H10 -> 01.07.2016
F7: ='01.06.'!F7:I8 -> Stichtagsmeldung III. Quartal 2016
B8: Kindertagesstätte: | C8: =Datenblatt!E8 -> Durchblick
B9: Kapazität gemäß Betriebserlaubnis: | D9: ='01.06.'!D9 -> 167 | E9: Kinder
B11: vertraglich belegte Plätze nach (KitaG § 1)
B12: Betreuungsart | C12: Betreuungs- zeit | D12: Kinder | E12: Kinder anderer Gemeinden | F12: gesamt | G12: Personal- schlüssel nach (KitaG § 10) | I12: Personal- stellen Soll | K12: Anmerkungen
B13: Kinderkrippe
B14: Kinder im Alter von 0 | C14: bis 6 h | D14: ='01.06.'!D14 -> 11 | E14: ='01.06.'!E14 -> 0 | F14: =SUM(D14:E14) -> 11 | G14: ='01.06.'!G14 -> 0.16 | I14: =F14*G14 -> 1.76
B15: bis zum vollendeten 3. LJ | C15: ab 6 h | D15: ='01.06.'!D15 -> 33 | E15: ='01.06.'!E15 -> 2 | F15: =SUM(D15:E15) -> 35 | G15: ='01.06.'!G15 -> 0.2 | I15: =F15*G15 -> 7
B16: gesamt | D16: =SUM(D14:D15) -> 44 | E16: =SUM(E14:E15) -> 2 | F16: =SUM(F14:F15) -> 46 | I16: =SUM(I14:I15) -> 8.76
B17: Kindergarten
B18: Kinder im Alter vom | C18: bis 6 h | D18: ='01.06.'!D18 -> 30 | E18: ='01.06.'!E18 -> 0 | F18: =SUM(D18:E18) -> 30 | G18: ='01.06.'!G18 -> 0.067 | I18: =F18*G18 -> 2.01
B19: 3 LJ bis zum Schuleintritt | C19: ab 6 h | D19: ='01.06.'!D19 -> 90 | E19: ='01.06.'!E19 -> 4 | F19: =SUM(D19:E19) -> 94 | G19: ='01.06.'!G19 -> 0.083 | I19: =F19*G19 -> 7.802
B20: gesamt | D20: =SUM(D18:D19) -> 120 | E20: =SUM(E18:E19) -> 4 | F20: =SUM(F18:F19) -> 124 | I20: =SUM(I18:I19) -> 9.812
B21: Hort
B22: Kinder im | C22: bis 4 h | D22: ='01.06.'!D22 -> 0 | E22: ='01.06.'!E22 -> 0 | F22: =SUM(D22:E22) -> 0 | G22: ='01.06.'!G22 -> 0.04 | I22: =F22*G22 -> 0
B23: Grundschulalter | C23: ab 4 h | D23: ='01.06.'!D23 -> 0 | E23: ='01.06.'!E23 -> 0 | F23: =SUM(D23:E23) -> 0 | G23: ='01.06.'!G23 -> 0.053 | I23: =F23*G23 -> 0
B24: gesamt | D24: =SUM(D22:D23) -> 0 | E24: =SUM(E22:E23) -> 0 | F24: =SUM(F22:F23) -> 0 | I24: =SUM(I22:I23) -> 0
I25: =I16+I20+I24 -> 18.572
B28: Kinderzahl insgesamt | F28: =F16+F20+F24 -> 170
B29: Kapazität | F29: =D9 -> 167
B30: Über- oder Unterbelegung | F30: =F28-F29 -> 3
D32: Finanziertes Personal gem. belegter Plätze | I32: =I25 -> 18.572
E34: Päd.Leitungsanteil Kita PersV § 5 (2) | I34: =IF(I32>=15,0.5,IF(I32>=10,0.375,IF(I32>=4,0.25,""))) -> 0.5
E37: Zwischensumme | I37: =SUM(I32:I34) -> 19.072
E39: ggf. Mehrausstattung im Zusammenhang mit Finanzierung nach §16(2) KitaG
E42: ggf. Mehrausstattung im Zusammenhang mit Finanzierung nach §16(2) KitaG
D45: Gesamt fin. Personal gem. bel. Plätze (VZ-Stellen) | I45: =SUM(I36:I44) -> 19.072
B48: sachlich und rechnerisch richtig:
B51: Datum | E51: Unterschrift einer zur Vertretung
E52: berechtigten Person

Sheet August (hidden)
B2: =Datenblatt!B2 -> Grundlage zur Finanzierung des notwendigen pädagogischen Personals
B3: =Datenblatt!B3 -> für die jeweilige Kindertagesstätte
B6: Träger: | C6: =Datenblatt!E6 -> Gute Wahl | G6: Stichtag: | I6: ="01.08."&Datenblatt!H10 -> 01.08.2016
F7: ='01.06.'!F7:I8 -> Stichtagsmeldung III. Quartal 2016
B8: Kindertagesstätte: | C8: =Datenblatt!E8 -> Durchblick
B9: Kapazität gemäß Betriebserlaubnis: | D9: =Juli!D9 -> 167 | E9: Kinder
B11: vertraglich belegte Plätze nach (KitaG § 1)
B12: Betreuungsart | C12: Betreuungs- zeit | D12: Kinder | E12: Kinder anderer Gemeinden | F12: gesamt | G12: Personal- schlüssel nach (KitaG § 10) | I12: Personal- stellen Soll | K12: Anmerkungen
B13: Kinderkrippe
B14: Kinder im Alter von 0 | C14: bis 6 h | D14: ='01.06.'!D14 -> 11 | E14: ='01.06.'!E14 -> 0 | F14: =SUM(D14:E14) -> 11 | G14: =Juli!G14 -> 0.16 | I14: =F14*G14 -> 1.76
B15: bis zum vollendeten 3. LJ | C15: ab 6 h | D15: ='01.06.'!D15 -> 33 | E15: ='01.06.'!E15 -> 2 | F15: =SUM(D15:E15) -> 35 | G15: =Juli!G15 -> 0.2 | I15: =F15*G15 -> 7
B16: gesamt | D16: =SUM(D14:D15) -> 44 | E16: =SUM(E14:E15) -> 2 | F16: =SUM(F14:F15) -> 46 | I16: =SUM(I14:I15) -> 8.76
B17: Kindergarten
B18: Kinder im Alter vom | C18: bis 6 h | D18: ='01.06.'!D18 -> 30 | E18: ='01.06.'!E18 -> 0 | F18: =SUM(D18:E18) -> 30 | G18: =Juli!G18 -> 0.067 | I18: =F18*G18 -> 2.01
B19: 3 LJ bis zum Schuleintritt | C19: ab 6 h | D19: ='01.06.'!D19 -> 90 | E19: ='01.06.'!E19 -> 4 | F19: =SUM(D19:E19) -> 94 | G19: =Juli!G19 -> 0.083 | I19: =F19*G19 -> 7.802
B20: gesamt | D20: =SUM(D18:D19) -> 120 | E20: =SUM(E18:E19) -> 4 | F20: =SUM(F18:F19) -> 124 | I20: =SUM(I18:I19) -> 9.812
B21: Hort
B22: Kinder im | C22: bis 4 h | D22: ='01.06.'!D22 -> 0 | E22: ='01.06.'!E22 -> 0 | F22: =SUM(D22:E22) -> 0 | G22: =Juli!G22 -> 0.04 | I22: =F22*G22 -> 0
B23: Grundschulalter | C23: ab 4 h | D23: ='01.06.'!D23 -> 0 | E23: ='01.06.'!E23 -> 0 | F23: =SUM(D23:E23) -> 0 | G23: =Juli!G23 -> 0.053 | I23: =F23*G23 -> 0
B24: gesamt | D24: =SUM(D22:D23) -> 0 | E24: =SUM(E22:E23) -> 0 | F24: =SUM(F22:F23) -> 0 | I24: =SUM(I22:I23) -> 0
I25: =I16+I20+I24 -> 18.572
B28: Kinderzahl insgesamt | F28: =F16+F20+F24 -> 170
B29: Kapazität | F29: =D9 -> 167
B30: Über- oder Unterbelegung | F30: =F28-F29 -> 3
D32: Finanziertes Personal gem. belegter Plätze | I32: =I25 -> 18.572
E34: Päd.Leitungsanteil Kita PersV § 5 (2) | I34: =IF(I32>=15,0.5,IF(I32>=10,0.375,IF(I32>=4,0.25,""))) -> 0.5
E37: Zwischensumme | I37: =SUM(I32:I34) -> 19.072
E39: ggf. Mehrausstattung im Zusammenhang mit Finanzierung nach §16(2) KitaG
E42: ggf. Mehrausstattung im Zusammenhang mit Finanzierung nach §16(2) KitaG
D45: Gesamt fin. Personal gem. bel. Plätze (VZ-Stellen) | I45: =SUM(I36:I44) -> 19.072
B48: sachlich und rechnerisch richtig:
B51: Datum | E51: Unterschrift einer zur Vertretung
E52: berechtigten Person

Sheet 01.09.
B2: =Datenblatt!B2 -> Grundlage zur Finanzierung des notwendigen pädagogischen Personals
B3: =Datenblatt!B3 -> für die jeweilige Kindertagesstätte
B6: Träger: | C6: =Datenblatt!E6 -> Gute Wahl | G6: Stichtag: | I6: ="01.09."&Datenblatt!H10 -> 01.09.2016
F7: ="Stichtagsmeldung IV. Quartal "&RIGHT(I6,4) -> Stichtagsmeldung IV. Quartal 2016
B8: Kindertagesstätte: | C8: =Datenblatt!E8 -> Durchblick
B9: Kapazität gemäß Betriebserlaubnis: | D9: =August!D9 -> 167 | E9: Kinder
B11: vertraglich belegte Plätze nach (KitaG § 1)
B12: Betreuungsart | C12: Betreuungs- zeit | D12: Kinder | E12: Kinder anderer Gemeinden | F12: gesamt | G12: Personal- schlüssel nach (KitaG § 10) | I12: Personal- stellen Soll | K12: Anmerkungen
B13: Kinderkrippe
B14: Kinder im Alter von 0 | C14: bis 6 h | D14: 0 | E14: 0 | F14: =SUM(D14:E14) -> 0 | G14: =August!G14 -> 0.16 | I14: =F14*G14 -> 0
B15: bis zum vollendeten 3. LJ | C15: ab 6 h | D15: 0 | E15: 0 | F15: =SUM(D15:E15) -> 0 | G15: =August!G15 -> 0.2 | I15: =F15*G15 -> 0
B16: gesamt | D16: =SUM(D14:D15) -> 0 | E16: =SUM(E14:E15) -> 0 | F16: =SUM(F14:F15) -> 0 | I16: =SUM(I14:I15) -> 0
B17: Kindergarten
B18: Kinder im Alter vom | C18: bis 6 h | D18: 0 | E18: 0 | F18: =SUM(D18:E18) -> 0 | G18: =August!G18 -> 0.067 | I18: =F18*G18 -> 0
B19: 3 LJ bis zum Schuleintritt | C19: ab 6 h | D19: 0 | E19: 0 | F19: =SUM(D19:E19) -> 0 | G19: =August!G19 -> 0.083 | I19: =F19*G19 -> 0
B20: gesamt | D20: =SUM(D18:D19) -> 0 | E20: =SUM(E18:E19) -> 0 | F20: =SUM(F18:F19) -> 0 | I20: =SUM(I18:I19) -> 0
B21: Hort
B22: Kinder im | C22: bis 4 h | D22: 0 | E22: 0 | F22: =SUM(D22:E22) -> 0 | G22: =August!G22 -> 0.04 | I22: =F22*G22 -> 0
B23: Grundschulalter | C23: ab 4 h | D23: 0 | E23: 0 | F23: =SUM(D23:E23) -> 0 | G23: =August!G23 -> 0.053 | I23: =F23*G23 -> 0
B24: gesamt | D24: =SUM(D22:D23) -> 0 | E24: =SUM(E22:E23) -> 0 | F24: =SUM(F22:F23) -> 0 | I24: =SUM(I22:I23) -> 0
I25: =I16+I20+I24 -> 0
B28: Kinderzahl insgesamt | F28: =F16+F20+F24 -> 0
B29: Kapazität | F29: =D9 -> 167
B30: Über- oder Unterbelegung | F30: =F28-F29 -> -167
D32: Finanziertes Personal gem. belegter Plätze | I32: =I25 -> 0
E34: Päd.Leitungsanteil Kita PersV § 5 (2) | I34: =IF(I32>=15,0.5,IF(I32>=10,0.375,IF(I32>=4,0.25,""))) -> 
E37: Zwischensumme | I37: =SUM(I32:I34) -> 0
E39: ggf. Mehrausstattung im Zusammenhang mit Finanzierung nach §16(2) KitaG
E42: ggf. Mehrausstattung im Zusammenhang mit Finanzierung nach §16(2) KitaG
D45: Gesamt fin. Personal gem. bel. Plätze (VZ-Stellen) | I45: =SUM(I36:I44) -> 0
B48: sachlich und rechnerisch richtig:
B51: Datum | E51: Unterschrift einer zur Vertretung
E52: berechtigten Person

Sheet Oktober (hidden)
B2: =Datenblatt!B2 -> Grundlage zur Finanzierung des notwendigen pädagogischen Personals
B3: =Datenblatt!B3 -> für die jeweilige Kindertagesstätte
B6: Träger: | C6: =Datenblatt!E6 -> Gute Wahl | G6: Stichtag: | I6: ="01.10."&Datenblatt!H10 -> 01.10.2016
F7: ='01.09.'!F7:I8 -> Stichtagsmeldung IV. Quartal 2016
B8: Kindertagesstätte: | C8: =Datenblatt!E8 -> Durchblick
B9: Kapazität gemäß Betriebserlaubnis: | D9: ='01.09.'!D9 -> 167 | E9: Kinder
B11: vertraglich belegte Plätze nach (KitaG § 1)
B12: Betreuungsart | C12: Betreuungs- zeit | D12: Kinder | E12: Kinder anderer Gemeinden | F12: gesamt | G12: Personal- schlüssel nach (KitaG § 10) | I12: Personal- stellen Soll | K12: Anmerkungen
B13: Kinderkrippe
B14: Kinder im Alter von 0 | C14: bis 6 h | D14: ='01.09.'!D14 -> 0 | E14: ='01.09.'!E14 -> 0 | F14: =SUM(D14:E14) -> 0 | G14: ='01.09.'!G14 -> 0.16 | I14: =F14*G14 -> 0
B15: bis zum vollendeten 3. LJ | C15: ab 6 h | D15: ='01.09.'!D15 -> 0 | E15: ='01.09.'!E15 -> 0 | F15: =SUM(D15:E15) -> 0 | G15: ='01.09.'!G15 -> 0.2 | I15: =F15*G15 -> 0
B16: gesamt | D16: =SUM(D14:D15) -> 0 | E16: =SUM(E14:E15) -> 0 | F16: =SUM(F14:F15) -> 0 | I16: =SUM(I14:I15) -> 0
B17: Kindergarten
B18: Kinder im Alter vom | C18: bis 6 h | D18: ='01.09.'!D18 -> 0 | E18: ='01.09.'!E18 -> 0 | F18: =SUM(D18:E18) -> 0 | G18: ='01.09.'!G18 -> 0.067 | I18: =F18*G18 -> 0
B19: 3 LJ bis zum Schuleintritt | C19: ab 6 h | D19: ='01.09.'!D19 -> 0 | E19: ='01.09.'!E19 -> 0 | F19: =SUM(D19:E19) -> 0 | G19: ='01.09.'!G19 -> 0.083 | I19: =F19*G19 -> 0
B20: gesamt | D20: =SUM(D18:D19) -> 0 | E20: =SUM(E18:E19) -> 0 | F20: =SUM(F18:F19) -> 0 | I20: =SUM(I18:I19) -> 0
B21: Hort
B22: Kinder im | C22: bis 4 h | D22: ='01.09.'!D22 -> 0 | E22: ='01.09.'!E22 -> 0 | F22: =SUM(D22:E22) -> 0 | G22: ='01.09.'!G22 -> 0.04 | I22: =F22*G22 -> 0
B23: Grundschulalter | C23: ab 4 h | D23: ='01.09.'!D23 -> 0 | E23: ='01.09.'!E23 -> 0 | F23: =SUM(D23:E23) -> 0 | G23: ='01.09.'!G23 -> 0.053 | I23: =F23*G23 -> 0
B24: gesamt | D24: =SUM(D22:D23) -> 0 | E24: =SUM(E22:E23) -> 0 | F24: =SUM(F22:F23) -> 0 | I24: =SUM(I22:I23) -> 0
I25: =I16+I20+I24 -> 0
B28: Kinderzahl insgesamt | F28: =F16+F20+F24 -> 0
B29: Kapazität | F29: =D9 -> 167
B30: Über- oder Unterbelegung | F30: =F28-F29 -> -167
D32: Finanziertes Personal gem. belegter Plätze | I32: =I25 -> 0
E34: Päd.Leitungsanteil Kita PersV § 5 (2) | I34: =IF(I32>=15,0.5,IF(I32>=10,0.375,IF(I32>=4,0.25,""))) -> 
E37: Zwischensumme | I37: =SUM(I32:I34) -> 0
E39: ggf. Mehrausstattung im Zusammenhang mit Finanzierung nach §16(2) KitaG
E42: ggf. Mehrausstattung im Zusammenhang mit Finanzierung nach §16(2) KitaG
D45: Gesamt fin. Personal gem. bel. Plätze (VZ-Stellen) | I45: =SUM(I36:I44) -> 0
B48: sachlich und rechnerisch richtig:
B51: Datum | E51: Unterschrift einer zur Vetretung
E52: berechtigten Person

Sheet November (hidden)
B2: =Datenblatt!B2 -> Grundlage zur Finanzierung des notwendigen pädagogischen Personals
B3: =Datenblatt!B3 -> für die jeweilige Kindertagesstätte
B6: Träger: | C6: =Datenblatt!E6 -> Gute Wahl | G6: Stichtag: | I6: ="01.11."&Datenblatt!H10 -> 01.11.2016
F7: ='01.09.'!F7:I8 -> Stichtagsmeldung IV. Quartal 2016
B8: Kindertagesstätte: | C8: =Datenblatt!E8 -> Durchblick
B9: Kapazität gemäß Betriebserlaubnis: | D9: =Oktober!D9 -> 167 | E9: Kinder
B11: vertraglich belegte Plätze nach (KitaG § 1)
B12: Betreuungsart | C12: Betreuungs- zeit | D12: Kinder | E12: Kinder anderer Gemeinden | F12: gesamt | G12: Personal- schlüssel nach (KitaG § 10) | I12: Personal- stellen Soll | K12: Anmerkungen
B13: Kinderkrippe
B14: Kinder im Alter von 0 | C14: bis 6 h | D14: ='01.09.'!D14 -> 0 | E14: ='01.09.'!E14 -> 0 | F14: =SUM(D14:E14) -> 0 | G14: =Oktober!G14 -> 0.16 | I14: =F14*G14 -> 0
B15: bis zum vollendeten 3. LJ | C15: ab 6 h | D15: ='01.09.'!D15 -> 0 | E15: ='01.09.'!E15 -> 0 | F15: =SUM(D15:E15) -> 0 | G15: =Oktober!G15 -> 0.2 | I15: =F15*G15 -> 0
B16: gesamt | D16: =SUM(D14:D15) -> 0 | E16: =SUM(E14:E15) -> 0 | F16: =SUM(F14:F15) -> 0 | I16: =SUM(I14:I15) -> 0
B17: Kindergarten
B18: Kinder im Alter vom | C18: bis 6 h | D18: ='01.09.'!D18 -> 0 | E18: ='01.09.'!E18 -> 0 | F18: =SUM(D18:E18) -> 0 | G18: =Oktober!G18 -> 0.067 | I18: =F18*G18 -> 0
B19: 3 LJ bis zum Schuleintritt | C19: ab 6 h | D19: ='01.09.'!D19 -> 0 | E19: ='01.09.'!E19 -> 0 | F19: =SUM(D19:E19) -> 0 | G19: =Oktober!G19 -> 0.083 | I19: =F19*G19 -> 0
B20: gesamt | D20: =SUM(D18:D19) -> 0 | E20: =SUM(E18:E19) -> 0 | F20: =SUM(F18:F19) -> 0 | I20: =SUM(I18:I19) -> 0
B21: Hort
B22: Kinder im | C22: bis 4 h | D22: ='01.09.'!D22 -> 0 | E22: ='01.09.'!E22 -> 0 | F22: =SUM(D22:E22) -> 0 | G22: =Oktober!G22 -> 0.04 | I22: =F22*G22 -> 0
B23: Grundschulalter | C23: ab 4 h | D23: ='01.09.'!D23 -> 0 | E23: ='01.09.'!E23 -> 0 | F23: =SUM(D23:E23) -> 0 | G23: =Oktober!G23 -> 0.053 | I23: =F23*G23 -> 0
B24: gesamt | D24: =SUM(D22:D23) -> 0 | E24: =SUM(E22:E23) -> 0 | F24: =SUM(F22:F23) -> 0 | I24: =SUM(I22:I23) -> 0
I25: =I16+I20+I24 -> 0
B28: Kinderzahl insgesamt | F28: =F16+F20+F24 -> 0
B29: Kapazität | F29: =D9 -> 167
B30: Über- oder Unterbelegung | F30: =F28-F29 -> -167
D32: Finanziertes Personal gem. belegter Plätze | I32: =I25 -> 0
E34: Päd.Leitungsanteil Kita PersV § 5 (2) | I34: =IF(I32>=15,0.5,IF(I32>=10,0.375,IF(I32>=4,0.25,""))) -> 
E37: Zwischensumme | I37: =SUM(I32:I34) -> 0
E39: ggf. Mehrausstattung im Zusammenhang mit Finanzierung nach §16(2) KitaG
E42: ggf. Mehrausstattung im Zusammenhang mit Finanzierung nach §16(2) KitaG
D45: Gesamt fin. Personal gem. bel. Plätze (VZ-Stellen) | I45: =SUM(I36:I44) -> 0
B48: sachlich und rechnerisch richtig:
B51: Datum | E51: Unterschrift einer zur Vetretung
E52: berechtigten Person

Sheet Dezember (hidden)
B2: =Datenblatt!B2 -> Grundlage zur Finanzierung des notwendigen pädagogischen Personals
B3: =Datenblatt!B3 -> für die jeweilige Kindertagesstätte
B6: Träger: | C6: =Datenblatt!E6 -> Gute Wahl | G6: Stichtag: | I6: ="01.12."&Datenblatt!H10 -> 01.12.2016
F7: ='01.09.'!F7:I8 -> Stichtagsmeldung IV. Quartal 2016
B8: Kindertagesstätte: | C8: =Datenblatt!E8 -> Durchblick
B9: Kapazität gemäß Betriebserlaubnis: | D9: =November!D9 -> 167 | E9: Kinder
B11: vertraglich belegte Plätze nach (KitaG § 1)
B12: Betreuungsart | C12: Betreuungs- zeit | D12: Kinder | E12: Kinder anderer Gemeinden | F12: gesamt | G12: Personal- schlüssel nach (KitaG § 10) | I12: Personal- stellen Soll | K12: Anmerkungen
B13: Kinderkrippe
B14: Kinder im Alter von 0 | C14: bis 6 h | D14: ='01.09.'!D14 -> 0 | E14: ='01.09.'!E14 -> 0 | F14: =SUM(D14:E14) -> 0 | G14: =November!G14 -> 0.16 | I14: =F14*G14 -> 0
B15: bis zum vollendeten 3. LJ | C15: ab 6 h | D15: ='01.09.'!D15 -> 0 | E15: ='01.09.'!E15 -> 0 | F15: =SUM(D15:E15) -> 0 | G15: =November!G15 -> 0.2 | I15: =F15*G15 -> 0
B16: gesamt | D16: =SUM(D14:D15) -> 0 | E16: =SUM(E14:E15) -> 0 | F16: =SUM(F14:F15) -> 0 | I16: =SUM(I14:I15) -> 0
B17: Kindergarten
B18: Kinder im Alter vom | C18: bis 6 h | D18: ='01.09.'!D18 -> 0 | E18: ='01.09.'!E18 -> 0 | F18: =SUM(D18:E18) -> 0 | G18: =November!G18 -> 0.067 | I18: =F18*G18 -> 0
B19: 3 LJ bis zum Schuleintritt | C19: ab 6 h | D19: ='01.09.'!D19 -> 0 | E19: ='01.09.'!E19 -> 0 | F19: =SUM(D19:E19) -> 0 | G19: =November!G19 -> 0.083 | I19: =F19*G19 -> 0
B20: gesamt | D20: =SUM(D18:D19) -> 0 | E20: =SUM(E18:E19) -> 0 | F20: =SUM(F18:F19) -> 0 | I20: =SUM(I18:I19) -> 0
B21: Hort
B22: Kinder im | C22: bis 4 h | D22: ='01.09.'!D22 -> 0 | E22: ='01.09.'!E22 -> 0 | F22: =SUM(D22:E22) -> 0 | G22: =November!G22 -> 0.04 | I22: =F22*G22 -> 0
B23: Grundschulalter | C23: ab 4 h | D23: ='01.09.'!D23 -> 0 | E23: ='01.09.'!E23 -> 0 | F23: =SUM(D23:E23) -> 0 | G23: =November!G23 -> 0.053 | I23: =F23*G23 -> 0
B24: gesamt | D24: =SUM(D22:D23) -> 0 | E24: =SUM(E22:E23) -> 0 | F24: =SUM(F22:F23) -> 0 | I24: =SUM(I22:I23) -> 0
I25: =I16+I20+I24 -> 0
B28: Kinderzahl insgesamt | F28: =F16+F20+F24 -> 0
B29: Kapazität | F29: =D9 -> 167
B30: Über- oder Unterbelegung | F30: =F28-F29 -> -167
D32: Finanziertes Personal gem. belegter Plätze | I32: =I25 -> 0
E34: Päd.Leitungsanteil Kita PersV § 5 (2) | I34: =IF(I32>=15,0.5,IF(I32>=10,0.375,IF(I32>=4,0.25,""))) -> 
E37: Zwischensumme | I37: =SUM(I32:I34) -> 0
E39: ggf. Mehrausstattung im Zusammenhang mit Finanzierung nach §16(2) KitaG
E42: ggf. Mehrausstattung im Zusammenhang mit Finanzierung nach §16(2) KitaG
D45: Gesamt fin. Personal gem. bel. Plätze (VZ-Stellen) | I45: =SUM(I36:I44) -> 0
B48: sachlich und rechnerisch richtig:
B51: Datum | E51: Unterschrift einer zur Vetretung
E52: berechtigten Person

Sheet Stichtage
B2: ="Statistik "&Datenblatt!E8&"Stichtage "&Datenblatt!H10 -> Statistik DurchblickStichtage 2016
B5: Anzahl der Kinder im Alter von 0 bis zur Vollendung des 3. Lebensjahres
B6: Betreuungsumfang gem. § 1 KitaG
B8: zu finanzierendes Quartal ab | C8: bis 6 h | D8: ab 6 h | E8: gesamt
B9: ="01. Januar "&Datenblatt!$H$10 -> 01. Januar 2016 | C9: ='01.12.'!F14 -> 18 | D9: ='01.12.'!F15 -> 39 | E9: =SUM(C9:D9) -> 57
B10: ="01. April "&Datenblatt!$H$10 -> 01. April 2016 | C10: ='01.03.'!F14 -> 14 | D10: ='01.03.'!F15 -> 39 | E10: =SUM(C10:D10) -> 53
B11: ="01. Juli "&Datenblatt!$H$10 -> 01. Juli 2016 | C11: ='01.06.'!F14 -> 11 | D11: ='01.06.'!F15 -> 35 | E11: =SUM(C11:D11) -> 46
B12: ="01. Oktober "&Datenblatt!$H$10 -> 01. Oktober 2016 | C12: ='01.09.'!F14 -> 0 | D12: ='01.09.'!F15 -> 0 | E12: =SUM(C12:D12) -> 0
B15: Anzahl der Kinder im Alter vom 3. Lebensjahr bis zum Schuleintritt
B16: Betreuungsumfang gem. § 1 KitaG
B18: zu finanzierendes Quartal ab | C18: bis 6 h | D18: ab 6 h | E18: gesamt
B19: ="01. Januar "&Datenblatt!$H$10 -> 01. Januar 2016 | C19: ='01.12.'!F18 -> 29 | D19: ='01.12.'!F19 -> 78 | E19: =SUM(C19:D19) -> 107
B20: ="01. April "&Datenblatt!$H$10 -> 01. April 2016 | C20: ='01.03.'!F18 -> 30 | D20: ='01.03.'!F19 -> 85 | E20: =SUM(C20:D20) -> 115
B21: ="01. Juli "&Datenblatt!$H$10 -> 01. Juli 2016 | C21: ='01.06.'!F18 -> 30 | D21: ='01.06.'!F19 -> 94 | E21: =SUM(C21:D21) -> 124
B22: ="01. Oktober "&Datenblatt!$H$10 -> 01. Oktober 2016 | C22: ='01.09.'!F18 -> 0 | D22: ='01.09.'!F19 -> 0 | E22: =SUM(C22:D22) -> 0
B24: Anzahl der Kinder im Grundschulalter
B25: Betreuungsumfang gem. § 1 KitaG
B27: zu finanzierendes Quartal ab | C27: bis 6 h | D27: ab 6 h | E27: gesamt
B28: ="01. Januar "&Datenblatt!$H$10 -> 01. Januar 2016 | C28: ='01.12.'!F22 -> 4 | D28: ='01.12.'!F23 -> 0 | E28: =SUM(C28:D28) -> 4
B29: ="01. April "&Datenblatt!$H$10 -> 01. April 2016 | C29: ='01.03.'!F22 -> 0 | D29: ='01.03.'!F23 -> 0 | E29: =SUM(C29:D29) -> 0
B30: ="01. Juli "&Datenblatt!$H$10 -> 01. Juli 2016 | C30: ='01.06.'!F22 -> 0 | D30: ='01.06.'!F23 -> 0 | E30: =SUM(C30:D30) -> 0
B31: ="01. Oktober "&Datenblatt!$H$10 -> 01. Oktober 2016 | C31: ='01.09.'!F22 -> 0 | D31: ='01.09.'!F23 -> 0 | E31: =SUM(C31:D31) -> 0
B34: Auswertung
B36: ="Auslastung "&Datenblatt!H10 -> Auslastung 2016 | C36: Kapazität | D36: Belegung gesamt | E36: Auslastung in %
B37: ="01. Januar "&Datenblatt!$H$10 -> 01. Januar 2016 | C37: =IF('01.12.'!$D$9=0,"",'01.12.'!$D$9) -> 167 | D37: =IF(SUMIF(B8:B31,B37,E8:E31)=0,"",SUMIF(B8:B31,B37,E8:E31)) -> 168 | E37: =IF(OR($C37="",$D37=""),"",$D37/$C37) -> 1.005988024
B38: ="01. April "&Datenblatt!$H$10 -> 01. April 2016 | C38: =IF('01.03.'!$D$9=0,"",'01.03.'!$D$9) -> 167 | D38: =IF(SUMIF(B9:B31,B38,E9:E31)=0,"",SUMIF(B9:B31,B38,E9:E31)) -> 168 | E38: 1.005988024
B39: ="01. Juli "&Datenblatt!$H$10 -> 01. Juli 2016 | C39: =IF('01.06.'!$D$9=0,"",'01.06.'!$D$9) -> 167 | D39: =IF(SUMIF(B9:B31,B39,E9:E31)=0,"",SUMIF(B9:B31,B39,E9:E31)) -> 170 | E39: 1.017964072
B40: ="01. Oktober "&Datenblatt!$H$10 -> 01. Oktober 2016 | C40: =IF('01.09.'!$D$9=0,"",'01.09.'!$D$9) -> 167 | D40: =IF(SUMIF(B9:B31,B40,E9:E31)=0,"",SUMIF(B9:B31,B40,E9:E31)) ->  | E40: =IF(OR($C40="",$D40=""),"",$D40/$C40) -> 
B41: Belegung Gesamt | D41: =SUM(D37:D40) -> 506
B42: Quartalsdurchschnitt | C42: =IF(ISERROR(SUM(C37:C40)/COUNT(C37:C40)),"",SUM(C37:C40)/COUNT(C37:C40)) -> 167 | D42: =IF(ISERROR(D41/COUNT(D37:D40)),"",D41/COUNT(D37:D40)) -> 168.6666667 | E42: =IF(ISERROR(D42/C42),"",D42/C42) -> 1.00998004

Sheet Monatsstatistik
B2: =Datenblatt!E8&" Monatsstatistik "&Datenblatt!H10 -> Durchblick Monatsstatistik 2016
B5: Anzahl der Kinder im Alter von 0 bis zur Vollendung des 3. Lebensjahres
B6: Betreuungsumfang gem. § 1 KitaG
B8: Monate | C8: bis 6 h | D8: ab 6 h | E8: gesamt
B9: ="01. Januar "&Datenblatt!$H$10 -> 01. Januar 2016 | C9: ='01.12.'!$F$14 -> 18 | D9: ='01.12.'!$F$15 -> 39 | E9: =SUM(C9:D9) -> 57
B10: ="01. Februar "&Datenblatt!$H$10 -> 01. Februar 2016 | C10: =Januar!$F$14 -> 18 | D10: =Januar!$F$15 -> 39 | E10: =SUM(C10:D10) -> 57
B11: ="01. März "&Datenblatt!$H$10 -> 01. März 2016 | C11: =Februar!$F$14 -> 18 | D11: =Februar!$F$15 -> 39 | E11: 57
B12: ="01. April "&Datenblatt!$H$10 -> 01. April 2016 | C12: ='01.03.'!$F$14 -> 14 | D12: ='01.03.'!$F$15 -> 39 | E12: 53
B13: ="01. Mai "&Datenblatt!$H$10 -> 01. Mai 2016 | C13: =April!$F$14 -> 14 | D13: =April!$F$15 -> 39 | E13: 53
B14: ="01. Juni "&Datenblatt!$H$10 -> 01. Juni 2016 | C14: =Mai!$F$14 -> 14 | D14: =Mai!$F$15 -> 39 | E14: 53
B15: ="01. Juli "&Datenblatt!$H$10 -> 01. Juli 2016 | C15: ='01.06.'!$F$14 -> 11 | D15: ='01.06.'!$F$15 -> 35 | E15: 46
B16: ="01. Agust "&Datenblatt!$H$10 -> 01. Agust 2016 | C16: =Juli!$F$14 -> 11 | D16: =Juli!$F$15 -> 35 | E16: 46
B17: ="01. September "&Datenblatt!$H$10 -> 01. September 2016 | C17: =August!$F$14 -> 11 | D17: =August!$F$15 -> 35 | E17: 46
B18: ="01. Oktober "&Datenblatt!$H$10 -> 01. Oktober 2016 | C18: ='01.09.'!$F$14 -> 0 | D18: ='01.09.'!$F$15 -> 0 | E18: 0
B19: ="01. November "&Datenblatt!$H$10 -> 01. November 2016 | C19: =Oktober!$F$14 -> 0 | D19: =Oktober!$F$15 -> 0 | E19: 0
B20: ="01. Dezember "&Datenblatt!$H$10 -> 01. Dezember 2016 | C20: =November!$F$14 -> 0 | D20: =November!$F$15 -> 0 | E20: 0
B22: vertraglich belegte Plätze | C22: =SUM(C9:C21) -> 129 | D22: =SUM(D9:D21) -> 339 | E22: =SUM(E9:E21) -> 468
B25: Anzahl der Kinder im Alter vom 3. Lebensjahr bis zum Schuleintritt
B26: Betreuungsumfang gem. § 1 KitaG
B28: Stichtage | C28: bis 6 h | D28: ab 6 h | E28: gesamt
B29: ="01. Januar "&Datenblatt!$H$10 -> 01. Januar 2016 | C29: ='01.12.'!$F$18 -> 29 | D29: ='01.12.'!$F$19 -> 78 | E29: =SUM(C29:D29) -> 107
B30: ="01. Februar "&Datenblatt!$H$10 -> 01. Februar 2016 | C30: =Januar!$F$18 -> 29 | D30: =Januar!$F$19 -> 78 | E30: =SUM(C30:D30) -> 107
B31: ="01. März "&Datenblatt!$H$10 -> 01. März 2016 | C31: =Februar!$F$18 -> 29 | D31: =Februar!$F$19 -> 78 | E31: 107
B32: ="01. April "&Datenblatt!$H$10 -> 01. April 2016 | C32: ='01.03.'!$F$18 -> 30 | D32: ='01.03.'!$F$19 -> 85 | E32: 115
B33: ="01. Mai "&Datenblatt!$H$10 -> 01. Mai 2016 | C33: =April!$F$18 -> 30 | D33: =April!$F$19 -> 85 | E33: 115
B34: ="01. Juni "&Datenblatt!$H$10 -> 01. Juni 2016 | C34: =Mai!$F$18 -> 30 | D34: =Mai!$F$19 -> 85 | E34: 115
B35: ="01. Juli "&Datenblatt!$H$10 -> 01. Juli 2016 | C35: ='01.06.'!$F$18 -> 30 | D35: ='01.06.'!$F$19 -> 94 | E35: 124
B36: ="01. Agust "&Datenblatt!$H$10 -> 01. Agust 2016 | C36: =Juli!$F$18 -> 30 | D36: =Juli!$F$19 -> 94 | E36: 124
B37: ="01. September "&Datenblatt!$H$10 -> 01. September 2016 | C37: =August!$F$18 -> 30 | D37: =August!$F$19 -> 94 | E37: 124
B38: ="01. Oktober "&Datenblatt!$H$10 -> 01. Oktober 2016 | C38: ='01.09.'!$F$18 -> 0 | D38: ='01.09.'!$F$19 -> 0 | E38: 0
B39: ="01. November "&Datenblatt!$H$10 -> 01. November 2016 | C39: =Oktober!$F$18 -> 0 | D39: =Oktober!$F$19 -> 0 | E39: 0
B40: ="01. Dezember "&Datenblatt!$H$10 -> 01. Dezember 2016 | C40: =November!$F$18 -> 0 | D40: =November!$F$19 -> 0 | E40: 0
B42: vertraglich belegte Plätze | C42: =SUM(C29:C41) -> 267 | D42: =SUM(D29:D41) -> 771 | E42: =SUM(E29:E41) -> 1038
B45: Anzahl der Kinder im Grundschulalter
B46: Betreuungsumfang gem. § 1 KitaG
B48: Stichtage | C48: bis 6 h | D48: ab 6 h | E48: gesamt
B49: ="01. Januar "&Datenblatt!$H$10 -> 01. Januar 2016 | C49: ='01.12.'!$F$22 -> 4 | D49: ='01.12.'!$F$23 -> 0 | E49: =SUM(C49:D49) -> 4
B50: ="01. Februar "&Datenblatt!$H$10 -> 01. Februar 2016 | C50: =Januar!$F$22 -> 4 | D50: =Januar!$F$23 -> 0 | E50: =SUM(C50:D50) -> 4
B51: ="01. März "&Datenblatt!$H$10 -> 01. März 2016 | C51: =Februar!$F$22 -> 4 | D51: =Februar!$F$23 -> 0 | E51: 4
B52: ="01. April "&Datenblatt!$H$10 -> 01. April 2016 | C52: ='01.03.'!$F$22 -> 0 | D52: ='01.03.'!$F$23 -> 0 | E52: 0
B53: ="01. Mai "&Datenblatt!$H$10 -> 01. Mai 2016 | C53: =April!$F$22 -> 0 | D53: =April!$F$23 -> 0 | E53: 0
B54: ="01. Juni "&Datenblatt!$H$10 -> 01. Juni 2016 | C54: =Mai!$F$22 -> 0 | D54: =Mai!$F$23 -> 0 | E54: 0
B55: ="01. Juli "&Datenblatt!$H$10 -> 01. Juli 2016 | C55: ='01.06.'!$F$22 -> 0 | D55: ='01.06.'!$F$23 -> 0 | E55: 0
B56: ="01. Agust "&Datenblatt!$H$10 -> 01. Agust 2016 | C56: =Juli!$F$22 -> 0 | D56: =Juli!$F$23 -> 0 | E56: 0
B57: ="01. September "&Datenblatt!$H$10 -> 01. September 2016 | C57: =August!$F$22 -> 0 | D57: =August!$F$23 -> 0 | E57: 0
B58: ="01. Oktober "&Datenblatt!$H$10 -> 01. Oktober 2016 | C58: ='01.09.'!$F$22 -> 0 | D58: ='01.09.'!$F$23 -> 0 | E58: 0
B59: ="01. November "&Datenblatt!$H$10 -> 01. November 2016 | C59: =Oktober!$F$22 -> 0 | D59: =Oktober!$F$23 -> 0 | E59: 0
B60: ="01. Dezember "&Datenblatt!$H$10 -> 01. Dezember 2016 | C60: =November!$F$22 -> 0 | D60: =November!$F$23 -> 0 | E60: 0
B62: vertraglich belegte Plätze | C62: =SUM(C49:C61) -> 12 | D62: =SUM(D49:D61) -> 0 | E62: =SUM(E49:E61) -> 12
B65: Kinder im Grundschulalter
B66: Betreuungszeit gem. § 3 Kita Pers. VO
C68: bis 4 Std. | D68: ab 4 h | E68: gesamt
B69: 2009-12-01 | C69: ='01.12.'!#REF! ->  | D69: ='01.12.'!#REF! ->  | E69: =SUM(C69:D69) -> 
B70: 2010-03-01 | C70: ='01.03.'!#REF! ->  | D70: ='01.03.'!#REF! ->  | E70: =SUM(C70:D70) -> 
B71: 2010-06-01 | C71: ='01.06.'!#REF! ->  | D71: ='01.06.'!#REF! ->  | E71: =SUM(C71:D71) -> 
B72: 2010-09-01 | C72: ='01.09.'!#REF! ->  | D72: ='01.09.'!#REF! ->  | E72: =SUM(C72:D72) -> 
B74: vertraglich belegte Plätze | C74: =SUM(C69:C72) ->  | D74: =SUM(D69:D72) ->  | E74: =SUM(E69:E72) -> 
B77: Auswertung
B79: ="Auslastung "&Datenblatt!H10 -> Auslastung 2016 | C79: Kapazität | D79: Belegung gesamt | E79: Auslastung in %
B80: ="01. Januar "&Datenblatt!$H$10 -> 01. Januar 2016 | C80: ='01.12.'!D9 -> 167 | D80: =IF(SUMIF($B$8:$B$62,B80,$E$8:$E$62)=0,"",SUMIF($B$8:$B$62,B80,$E$8:$E$62)) -> 168 | E80: =IF(OR($C80="",$D80=""),"",$D80/$C80) -> 1.005988024
B81: ="01. Februar "&Datenblatt!$H$10 -> 01. Februar 2016 | C81: =IF(Januar!$D$9=0,"",Januar!$D$9) -> 167 | D81: =IF(SUMIF($B$8:$B$62,B81,$E$8:$E$62)=0,"",SUMIF($B$8:$B$62,B81,$E$8:$E$62)) -> 168 | E81: 1.005988024
B82: ="01. März "&Datenblatt!$H$10 -> 01. März 2016 | C82: =IF(Februar!$D$9=0,"",Februar!$D$9) -> 167 | D82: 168 | E82: 1.005988024
B83: ="01. April "&Datenblatt!$H$10 -> 01. April 2016 | C83: =IF('01.03.'!$D$9=0,"",'01.03.'!$D$9) -> 167 | D83: 168 | E83: 1.005988024
B84: ="01. Mai "&Datenblatt!$H$10 -> 01. Mai 2016 | C84: =IF(April!$D$9=0,"",April!$D$9) -> 167 | D84: 168 | E84: 1.005988024
B85: ="01. Juni "&Datenblatt!$H$10 -> 01. Juni 2016 | C85: =IF(Mai!$D$9=0,"",Mai!$D$9) -> 167 | D85: 168 | E85: 1.005988024
B86: ="01. Juli "&Datenblatt!$H$10 -> 01. Juli 2016 | C86: =IF('01.06.'!$D$9=0,"",'01.06.'!$D$9) -> 167 | D86: 170 | E86: 1.017964072
B87: ="01. Agust "&Datenblatt!$H$10 -> 01. Agust 2016 | C87: =IF(Juli!$D$9=0,"",Juli!$D$9) -> 167 | D87: 170 | E87: 1.017964072
B88: ="01. September "&Datenblatt!$H$10 -> 01. September 2016 | C88: =IF(August!$D$9=0,"",August!$D$9) -> 167 | D88: 170 | E88: 1.017964072
B89: ="01. Oktober "&Datenblatt!$H$10 -> 01. Oktober 2016 | C89: =IF('01.09.'!$D$9=0,"",'01.09.'!$D$9) -> 167
B90: ="01. November "&Datenblatt!$H$10 -> 01. November 2016 | C90: =IF(Oktober!$D$9=0,"",Oktober!$D$9) -> 167
B91: ="01. Dezember "&Datenblatt!$H$10 -> 01. Dezember 2016 | C91: =IF(November!$D$9=0,"",November!$D$9) -> 167
B92: Belegung Gesamt | D92: =SUM(D80:D91) -> 1518
B93: Monatsdurchschnitt | C93: =IF(ISERROR(SUM(C80:C91)/COUNT(C80:C91)),"",SUM(C80:C91)/COUNT(C80:C91)) -> 167 | D93: =IF(ISERROR(D92/COUNT(D80:D91)),"",D92/COUNT(D80:D91)) -> 168.6666667 | E93: =IF(OR($C93="",$D93=""),"",$D93/$C93) -> 1.00998004
B95: ="Gesamt Elternbeiträge "&Datenblatt!H10 -> Gesamt Elternbeiträge 2016 | E95: 75000
B96: ="Durschnittlicher Elternbeitrag "&Datenblatt!H10 -> Durschnittlicher Elternbeitrag 2016 | E96: =IF(OR(D93="",E95=""),"",E95/D93) -> 444.6640316

Sheet Personalstunden
B2: ="Personaleinsatz des notwendigen pädagogischen Personals "&Datenblatt!E8&Datenblatt!H10 -> Personaleinsatz des notwendigen pädagogischen Personals Durchblick2016
E5: 4. Quartal | G5: ="1. Quartal "&Datenblatt!$H$10 -> 1. Quartal 2016 | K5: ="2. Quartal "&Datenblatt!$H$10 -> 2. Quartal 2016 | O5: ="3. Quartal "&Datenblatt!$H$10 -> 3. Quartal 2016 | S5: ="4. Quartal "&Datenblatt!$H$10 -> 4. Quartal 2016 | W5: Jahres-Ø | Y5: Leere Zeilen Prüfung | Z5: ldf. | AA5: Anmerkungen
B6: lfd.Nr. | C6: Personal | E6: ='01.12.'!I6 -> 01.12.2015 | G6: =Januar!$I$6 -> 01.01.2016 | H6: =Februar!$I$6 -> 01.02.2016 | I6: ='01.03.'!$I$6 -> 01.03.2016 | K6: =April!I6 -> 01.04.2016 | L6: =Mai!I6 -> 01.05.2016 | M6: ='01.06.'!I6 -> 01.06.2016 | O6: =Juli!$I$6 -> 01.07.2016 | P6: =August!$I$6 -> 01.08.2016 | Q6: ='01.09.'!$I$6 -> 01.09.2016 | S6: =Oktober!$I$6 -> 01.10.2016 | T6: =November!$I$6 -> 01.11.2016 | U6: =Dezember!$I$6 -> 01.12.2016 | W6: =Datenblatt!H10 -> 2016 | Z6: Nr.
B7: =IF(C7="","",1) -> 1 | C7: =IF(Datenblatt!B37="","",Datenblatt!B37) -> Mozart | E7: 35 | G7: 37 | H7: 37 | I7: =37+2 -> 39 | K7: 40 | L7: =K7 -> 40 | M7: 40 | O7: 40 | P7: 35 | Q7: 40 | W7: =IF(ISERROR(ROUND(SUM(G7:U7)/COUNT(G7:U7),2)),"",ROUND(SUM(G7:U7)/COUNT(G7:U7),2)) -> 38.67 | Y7: =IF(C7="","x","") ->  | Z7: =B7 -> 1 | AC7: =AVERAGE(G7:I7) -> 37.66666667 | AD7: =IF(AC7=Jahresdurchschnitt!E7,"OK","Nööööö") -> OK
B8: =IF(C8="","",MAX($B$7:B7)+1) -> 2 | C8: =IF(Datenblatt!B38="","",Datenblatt!B38) -> Beethoven | E8: 35 | G8: 37 | H8: 37 | I8: =37+2 -> 39 | K8: 40 | L8: 40 | M8: 40 | O8: 36 | P8: 35 | Q8: 40 | W8: 38.22 | Y8: =IF(C8="","x","") ->  | Z8: 2 | AC8: =AVERAGE(G8:I8) -> 37.66666667 | AD8: =IF(AC8=Jahresdurchschnitt!E8,"OK","Nööööö") -> OK
B9: =IF(C9="","",MAX($B$7:B8)+1) -> 3 | C9: =IF(Datenblatt!B39="","",Datenblatt!B39) -> Chopin | E9: 17.5 | G9: =E9 -> 17.5 | H9: =G9 -> 17.5 | I9: =H9 -> 17.5 | K9: =I9 -> 17.5 | L9: 17.5 | M9: 17.5 | O9: =M9 -> 17.5 | P9: =O9 -> 17.5 | Q9: =P9 -> 17.5 | S9: =Q9 -> 17.5 | T9: =S9 -> 17.5 | U9: 17.5 | W9: 17.5 | Z9: 3 | AA9: Anrechnung mit 70% von 25 Wochenstunden | AC9: 17.5 | AD9: =IF(AC9=Jahresdurchschnitt!E9,"OK","Nööööö") -> OK
B10: =IF(C10="","",MAX($B$7:B9)+1) -> 4 | C10: =IF(Datenblatt!B40="","",Datenblatt!B40) -> Donizetti | E10: 36 | G10: 37 | H10: 37 | I10: =37+2 -> 39 | K10: 40 | L10: 40 | M10: 40 | O10: 36 | P10: 35 | Q10: 40 | W10: 38.22 | Z10: 4 | AC10: 37.66666667 | AD10: =IF(AC10=Jahresdurchschnitt!E10,"OK","Nööööö") -> OK
B11: =IF(C11="","",MAX($B$7:B10)+1) -> 5 | C11: =IF(Datenblatt!B41="","",Datenblatt!B41) -> Bruckner | E11: 35 | G11: 37 | H11: 37 | I11: =37+2 -> 39 | K11: 40 | L11: 40 | M11: 40 | O11: 36 | P11: 35 | Q11: 40 | W11: 38.22 | Z11: 5 | AC11: 37.66666667 | AD11: =IF(AC11=Jahresdurchschnitt!E11,"OK","Nööööö") -> OK
B12: =IF(C12="","",MAX($B$7:B11)+1) -> 6 | C12: =IF(Datenblatt!B42="","",Datenblatt!B42) -> Britten | E12: 35 | G12: 35 | H12: 37 | I12: =37+2 -> 39 | K12: 40 | L12: 40 | M12: 40 | O12: 36 | P12: 35 | Q12: 40 | W12: 38 | Z12: 6 | AC12: 37 | AD12: =IF(AC12=Jahresdurchschnitt!E12,"OK","Nööööö") -> OK
B13: =IF(C13="","",MAX($B$7:B12)+1) -> 7 | C13: =IF(Datenblatt!B43="","",Datenblatt!B43) -> Händel | E13: 30 | G13: =E13 -> 30 | H13: =G13 -> 30 | I13: =H13-I117 -> 30 | K13: =I13 -> 30 | L13: 30 | M13: 30 | O13: =40-10-O117 -> 30 | P13: =40-10-P117 -> 30 | Q13: =40-10-Q117 -> 30 | W13: 30 | Z13: 7 | AC13: 30 | AD13: =IF(AC13=Jahresdurchschnitt!E13,"OK","Nööööö") -> OK
B14: =IF(C14="","",MAX($B$7:B13)+1) -> 8 | C14: =IF(Datenblatt!B44="","",Datenblatt!B44) -> Haydn | E14: 3.25 | G14: 20 | H14: 20 | I14: =H14 -> 20 | K14: =40-K75-K86-K97 -> 1 | L14: =40-L75-L86-L97 -> 1 | M14: =40-M75-M86-M97 -> 1 | O14: =40-O75-O86-O97 -> 2.5 | P14: =40-P75-P86-P97 -> 2.5 | Q14: =40-Q75-Q86-Q97 -> 2.5 | W14: 7.83 | Z14: 8 | AC14: 20 | AD14: =IF(AC14=Jahresdurchschnitt!E14,"OK","Nööööö") -> OK
B15: =IF(C15="","",MAX($B$7:B14)+1) -> 9 | C15: =IF(Datenblatt!B45="","",Datenblatt!B45) -> Offenbach | E15: 34 | G15: 35 | H15: 35 | I15: 35 | K15: =I15 -> 35 | L15: 5 | M15: 5 | O15: =M15 -> 5 | P15: =O15 -> 5 | Q15: 5 | W15: 18.33 | Z15: 9 | AC15: 35 | AD15: =IF(AC15=Jahresdurchschnitt!E15,"OK","Nööööö") -> OK
B16: =IF(C16="","",MAX($B$7:B15)+1) -> 10 | C16: =IF(Datenblatt!B46="","",Datenblatt!B46) -> Rossini | E16: 19 | G16: =E16 -> 19 | H16: =G16 -> 19 | I16: 19 | K16: =I16 -> 19 | L16: 19 | M16: 19 | O16: 19 | P16: 19 | Q16: 19 | S16: 24 | W16: 19.5 | Z16: 10 | AA16: ab 12/2014 Altersteilzeit - 19 h unverändert Freiphase ab 01/2018 | AC16: 19 | AD16: =IF(AC16=Jahresdurchschnitt!E16,"OK","Nööööö") -> OK
B17: =IF(C17="","",MAX($B$7:B16)+1) -> 11 | C17: =IF(Datenblatt!B47="","",Datenblatt!B47) -> Ravel | E17: 20 | G17: =E17 -> 20 | H17: 20 | I17: =H17-I116 -> 20 | K17: =I17 -> 20 | L17: 20 | M17: 21 | O17: =40-10-O52-O116 -> 20 | P17: =40-10-P52-P116 -> 20 | Q17: =40-10-Q52-Q116 -> 20 | W17: 20.11 | Z17: 11 | AC17: 20 | AD17: =IF(AC17=Jahresdurchschnitt!E17,"OK","Nööööö") -> OK
B18: =IF(C18="","",MAX($B$7:B17)+1) -> 12 | C18: =IF(Datenblatt!B48="","",Datenblatt!B48) -> Salieri | E18: 39 | G18: 38 | H18: 38 | I18: 38 | K18: =I18 -> 38 | L18: 38 | M18: 38 | O18: =40-O138 -> 39 | P18: =36-P138 -> 35 | Q18: =40-Q138 -> 39 | S18: =Q18 -> 39 | T18: 39 | U18: 39 | W18: 38.17 | Z18: 12 | AC18: 38 | AD18: =IF(AC18=Jahresdurchschnitt!E18,"OK","Nööööö") -> OK
B19: =IF(C19="","",MAX($B$7:B18)+1) -> 13 | C19: =IF(Datenblatt!B49="","",Datenblatt!B49) -> Verdi | E19: 0 | G19: 0 | H19: 38 | I19: =H19 -> 38 | K19: 35 | L19: 35 | M19: 35 | O19: =M19 -> 35 | P19: =O19 -> 35 | Q19: 35 | W19: 31.78 | Z19: 13 | AA19: ab 04/2014 nur noch 35 h | AC19: 25.33333333 | AD19: =IF(AC19=Jahresdurchschnitt!E19,"OK","Nööööö") -> OK
B20: =IF(C20="","",MAX($B$7:B19)+1) -> 14 | C20: =IF(Datenblatt!B50="","",Datenblatt!B50) -> Vivaldi | E20: 30 | G20: =E20 -> 30 | H20: =G20 -> 30 | I20: =H20 -> 30 | K20: =I20 -> 30 | L20: 30 | M20: 30 | O20: =M20 -> 30 | P20: 30 | Q20: 30 | W20: 30 | Z20: 14 | AA20: Stundenreduzierung ab 10/2011 auf 30 Wo-Stunden | AC20: 30 | AD20: =IF(AC20=Jahresdurchschnitt!E20,"OK","Nööööö") -> OK
B21: =IF(C21="","",MAX($B$7:B20)+1) -> 15 | C21: =IF(Datenblatt!B51="","",Datenblatt!B51) -> Wagner | E21: 35 | G21: 37 | H21: 37 | I21: 38 | K21: 39 | L21: 39 | M21: 39 | O21: =37-O145 -> 37 | P21: =36-P145 -> 36 | Q21: =40-Q145 -> 40 | W21: 38 | Z21: 15 | AC21: 37.33333333 | AD21: =IF(AC21=Jahresdurchschnitt!E21,"OK","Nööööö") -> OK
B22: =IF(C22="","",MAX($B$7:B21)+1) -> 16 | C22: =IF(Datenblatt!B52="","",Datenblatt!B52) -> Tschaikowsky | E22: 34 | G22: 38 | H22: 38 | I22: =38-I108 -> 36 | K22: =I22 -> 36 | L22: 36 | M22: 36 | O22: =40-O108-O122 -> 36 | P22: =40-P108-P122 -> 30 | Q22: =40-Q108-Q122 -> 30 | W22: 35.11 | Z22: 16 | AC22: 37.33333333 | AD22: =IF(AC22=Jahresdurchschnitt!E22,"OK","Nööööö") -> OK
B23: =IF(C23="","",MAX($B$7:B22)+1) -> 17 | C23: =IF(Datenblatt!B53="","",Datenblatt!B53) -> Puccini | E23: 30 | G23: =E23 -> 30 | H23: =G23 -> 30 | I23: 30 | K23: =I23 -> 30 | L23: =K23 -> 30 | M23: 30 | O23: =M23 -> 30 | P23: =O23 -> 30 | Q23: =P23 -> 30 | W23: 30 | Z23: 17 | AC23: 30 | AD23: =IF(AC23=Jahresdurchschnitt!E23,"OK","Nööööö") -> OK
B24: =IF(C24="","",MAX($B$7:B23)+1) -> 18 | C24: =IF(Datenblatt!B54="","",Datenblatt!B54) -> Sibelius | E24: 17.5 | G24: =E24 -> 17.5 | H24: 17.5 | I24: 17.5 | K24: =I24 -> 17.5 | L24: 17.5 | M24: 17.5 | O24: 36 | P24: 35 | Q24: 40 | W24: 24 | Z24: 18 | AA24: Anrechnung mit 70% von 25 Wochenstunden-Ausbildung beendet zum 30.06.2014 ab 07/2014 Stundenangleich p.P. | AC24: 17.5 | AD24: =IF(AC24=Jahresdurchschnitt!E24,"OK","Nööööö") -> OK
B25: =IF(C25="","",MAX($B$7:B24)+1) -> 19 | C25: =IF(Datenblatt!B55="","",Datenblatt!B55) -> Smetana | E25: 35 | G25: 37 | H25: 37 | I25: =37+2 -> 39 | K25: 40 | L25: 40 | M25: 40 | O25: 36 | P25: 35 | Q25: 40 | W25: 38.22 | Z25: 19 | AC25: 37.66666667 | AD25: =IF(AC25=Jahresdurchschnitt!E25,"OK","Nööööö") -> OK
B26: =IF(C26="","",MAX($B$7:B25)+1) -> 20 | C26: =IF(Datenblatt!B56="","",Datenblatt!B56) -> Schumann | E26: 35 | G26: 37 | H26: 37 | I26: =37+2 -> 39 | K26: 40 | L26: 40 | M26: 40 | O26: 36 | P26: 35 | Q26: 40 | W26: 38.22 | Z26: 20 | AC26: 37.66666667 | AD26: =IF(AC26=Jahresdurchschnitt!E26,"OK","Nööööö") -> OK
B27: =IF(C27="","",MAX($B$7:B26)+1) -> 21 | C27: =IF(Datenblatt!B57="","",Datenblatt!B57) -> Orff | E27: 34 | G27: 33 | H27: =G27 -> 33 | I27: =H27 -> 33 | K27: 33 | L27: 33 | M27: 33 | O27: =40-O98-O131-O144 -> 36 | P27: =40-P98-P131-P144 -> 36 | Q27: =40-Q98-Q131-Q144 -> 36 | W27: 34 | Z27: 21 | AC27: 33 | AD27: =IF(AC27=Jahresdurchschnitt!E27,"OK","Nööööö") -> OK
B28: =IF(C28="","",MAX($B$7:B27)+1) -> 22 | C28: =IF(Datenblatt!B58="","",Datenblatt!B58) -> Pompadour | E28: 35 | G28: 38 | H28: 0 | I28: 0 | K28: 0 | L28: 0 | M28: 0 | O28: 0 | P28: 0 | Q28: 0 | S28: 0 | T28: 0 | U28: 0 | W28: 3.17 | Z28: 22 | AA28: Kündigung zum 31.01. | AC28: 12.66666667 | AD28: =IF(AC28=Jahresdurchschnitt!E28,"OK","Nööööö") -> OK
B29: =IF(C29="","",MAX($B$7:B28)+1) -> 23 | C29: =IF(Datenblatt!B59="","",Datenblatt!B59) -> Diderot | E29: 35 | G29: 37 | H29: 37 | I29: 39 | K29: 40 | L29: =K29 -> 40 | M29: =L29 -> 40 | O29: 36 | P29: 35 | Q29: 40 | W29: 38.22 | Z29: 23 | AC29: 37.66666667 | AD29: =IF(AC29=Jahresdurchschnitt!E29,"OK","Nööööö") -> OK
B30: =IF(C30="","",MAX($B$7:B29)+1) -> 24 | C30: =IF(Datenblatt!B60="","",Datenblatt!B60) -> Max | E30: 20 | G30: 35 | H30: 20 | I30: 20 | J30: 20 | K30: 20 | L30: 25 | M30: 25 | O30: 20 | P30: 20 | Q30: 20 | W30: 22.5 | Z30: 24 | AC30: 25 | AD30: =IF(AC30=Jahresdurchschnitt!E30,"OK","Nööööö") -> OK
B31: =IF(C31="","",MAX($B$7:B30)+1) -> 25 | C31: =IF(Datenblatt!B61="","",Datenblatt!B61) -> Peter | E31: 8 | G31: 35 | H31: 35 | I31: 35 | K31: 35 | L31: 35 | M31: 35 | O31: 35 | P31: 35 | Q31: 35 | S31: 0 | T31: 0 | U31: 0 | W31: 26.25 | Z31: 25 | AC31: 35 | AD31: =IF(AC31=Jahresdurchschnitt!E31,"OK","Nööööö") -> OK
B32: =IF(C32="","",MAX($B$7:B31)+1) -> 26 | C32: =IF(Datenblatt!B62="","",Datenblatt!B62) -> Luise | E32: 0 | G32: 0 | H32: 0 | I32: 0 | K32: 0 | L32: 0 | M32: 30 | O32: 30 | P32: 40 | Q32: 40 | W32: 15.56 | Z32: 26 | AC32: 0
B33: =IF(C33="","",MAX($B$7:B32)+1) ->  | C33: =IF(Datenblatt!B63="","",Datenblatt!B63) ->  | W33: =IF(ISERROR(ROUND(SUM(G33:U33)/COUNT(G33:U33),2)),"",ROUND(SUM(G33:U33)/COUNT(G33:U33),2)) ->  | Y33: =IF(C33="","x","") -> x | Z33: =B33 -> 
B34: =IF(C34="","",MAX($B$7:B33)+1) ->  | C34: =IF(Datenblatt!B64="","",Datenblatt!B64) ->  | W34: =IF(ISERROR(ROUND(SUM(G34:U34)/COUNT(G34:U34),2)),"",ROUND(SUM(G34:U34)/COUNT(G34:U34),2)) ->  | Y34: =IF(C34="","x","") -> x | Z34: =B34 -> 
B35: =IF(C35="","",MAX($B$7:B34)+1) ->  | C35: =IF(Datenblatt!B65="","",Datenblatt!B65) ->  | Y35: x
B36: =IF(C36="","",MAX($B$7:B35)+1) ->  | C36: =IF(Datenblatt!B66="","",Datenblatt!B66) ->  | Y36: x
B37: =IF(C37="","",MAX($B$7:B36)+1) ->  | C37: =IF(Datenblatt!B67="","",Datenblatt!B67) ->  | Y37: x
B38: =IF(C38="","",MAX($B$7:B37)+1) ->  | C38: =IF(Datenblatt!B68="","",Datenblatt!B68) ->  | Y38: x
B39: =IF(C39="","",MAX($B$7:B38)+1) ->  | C39: =IF(Datenblatt!B69="","",Datenblatt!B69) ->  | Y39: x
B40: =IF(C40="","",MAX($B$7:B39)+1) ->  | C40: =IF(Datenblatt!B70="","",Datenblatt!B70) ->  | Y40: x
B41: =IF(C41="","",MAX($B$7:B40)+1) ->  | C41: =IF(Datenblatt!B71="","",Datenblatt!B71) ->  | Y41: x
B42: =IF(C42="","",MAX($B$7:B41)+1) ->  | C42: =IF(Datenblatt!B72="","",Datenblatt!B72) ->  | Y42: x
B43: =IF(C43="","",MAX($B$7:B42)+1) ->  | C43: =IF(Datenblatt!B73="","",Datenblatt!B73) ->  | Y43: x
B44: =IF(C44="","",MAX($B$7:B43)+1) ->  | C44: =IF(Datenblatt!B74="","",Datenblatt!B74) ->  | Y44: x
C45: Stunden Päd. Personal | E45: =IF(COUNT(E7:E44)=COUNT($B$7:$B$44),SUM(E7:E44),"Daten!") -> 687.25 | G45: =IF(COUNT(G7:G44)=COUNT($B$7:$B$44),SUM(G7:G44),"Daten!") -> 767 | H45: =IF(COUNT(H7:H44)=COUNT($B$7:$B$44),SUM(H7:H44),"Daten!") -> 754 | I45: =IF(COUNT(I7:I44)=COUNT($B$7:$B$44),SUM(I7:I44),"Daten!") -> 769 | K45: =IF(COUNT(K7:K44)=COUNT($B$7:$B$44),SUM(K7:K44),"Daten!") -> 756 | L45: =IF(COUNT(L7:L44)=COUNT($B$7:$B$44),SUM(L7:L44),"Daten!") -> 731 | M45: =IF(COUNT(M7:M44)=COUNT($B$7:$B$44),SUM(M7:M44),"Daten!") -> 762 | O45: =IF(COUNT(O7:O44)=COUNT($B$7:$B$44),SUM(O7:O44),"Daten!") -> 750 | P45: =IF(COUNT(P7:P44)=COUNT($B$7:$B$44),SUM(P7:P44),"Daten!") -> 736 | Q45: =IF(COUNT(Q7:Q44)=COUNT($B$7:$B$44),SUM(Q7:Q44),"Daten!") -> 789 | S45: =IF(COUNT(S7:S44)=COUNT($B$7:$B$44),SUM(S7:S44),"Daten!") -> Daten! | T45: =IF(COUNT(T7:T44)=COUNT($B$7:$B$44),SUM(T7:T44),"Daten!") -> Daten! | U45: =IF(COUNT(U7:U44)=COUNT($B$7:$B$44),SUM(U7:U44),"Daten!") -> Daten! | W45: 757.11
B47: Pädagogisches Personal Ist | E47: =IF(E45="Daten!","",E45) -> 687.25 | G47: =IF(G45="Daten!","",G45) -> 767 | H47: 754 | I47: 769 | K47: 756 | L47: 731 | M47: 762 | O47: 750 | P47: 736 | Q47: 789 | W47: =IF(ISERROR(ROUND(SUM(G47:U47)/COUNT(G47:U47),2)),"",ROUND(SUM(G47:U47)/COUNT(G47:U47),2)) -> 757.11
B48: Pädagogischer Leitungsanteil | E48: 20 | G48: =IF(ISERROR('01.12.'!$I$34*40),"",'01.12.'!$I$34*40) -> 20 | H48: =IF(ISERROR(Januar!$I$34*40),"",Januar!$I$34*40) -> 20 | I48: =IF(ISERROR(Februar!$I$34*40),"",Februar!$I$34*40) -> 20 | K48: =IF(ISERROR('01.03.'!$I$34*40),"",'01.03.'!$I$34*40) -> 20 | L48: =IF(ISERROR(April!$I$34*40),"",April!$I$34*40) -> 20 | M48: =IF(ISERROR(Mai!$I$34*40),"",Mai!$I$34*40) -> 20 | O48: =IF(ISERROR('01.06.'!$I$34*40),"",'01.06.'!$I$34*40) -> 20 | P48: =IF(ISERROR(Juli!$I$34*40),"",Juli!$I$34*40) -> 20 | Q48: =IF(ISERROR(August!$I$34*40),"",August!$I$34*40) -> 20 | S48: =IF(ISERROR('01.09.'!$I$34*40),"",'01.09.'!$I$34*40) ->  | T48: =IF(ISERROR(Oktober!$I$34*40),"",Oktober!$I$34*40) ->  | U48: =IF(ISERROR(November!$I$34*40),"",November!$I$34*40) ->  | W48: 20
B49: Pädagogisches Personal Ist - Gesamt | E49: =IF(E47="","",SUM(E47:E48)) -> 707.25 | G49: =IF(G47="","",SUM(G47:G48)) -> 787 | H49: 774 | I49: 789 | K49: =IF(K47="","",SUM(K47:K48)) -> 776 | L49: 751 | M49: 782 | O49: =IF(O47="","",SUM(O47:O48)) -> 770 | P49: 756 | Q49: 809 | S49: =IF(S47="","",SUM(S47:S48)) ->  | T49: =IF(T47="","",SUM(T47:T48)) ->  | W49: 777.11
B50: Resultierende VZ-Stellen (Ist) | E50: =IF(E49="","",E49/40) -> 17.68125 | G50: =IF(G49="","",G49/40) -> 19.675 | H50: 19.35 | I50: 19.725 | K50: =IF(K49="","",K49/40) -> 19.4 | L50: 18.775 | M50: 19.55 | O50: =IF(O49="","",O49/40) -> 19.25 | P50: 18.9 | Q50: 20.225 | S50: =IF(S49="","",S49/40) ->  | T50: =IF(T49="","",T49/40) ->  | W50: 19.43
B52: Organisatorischer Leitungsanteil | E52: 10 | G52: 10 | H52: =G52 -> 10 | I52: =H52 -> 10 | K52: =I52 -> 10 | L52: =K52 -> 10 | M52: =L52 -> 10 | O52: =M52 -> 10 | P52: =O52 -> 10 | Q52: =P52 -> 10 | S52: =Q52 -> 10 | T52: =S52 -> 10 | U52: =T52 -> 10 | W52: =IF(ISERROR(ROUND(SUM(G52:U52)/COUNT(G52:U52),2)),"",ROUND(SUM(G52:U52)/COUNT(G52:U52),2)) -> 10
B54: zu finanzierendes Personal gemäß Stichtag (VZ-Stellen - Soll) | E54: 17.673 | G54: =IF('01.12.'!I45=0,"",'01.12.'!I45) -> 19.757 | H54: =IF(Januar!I45=0,"",Januar!I45) -> 19.757 | I54: =IF(Februar!I45=0,"",Februar!I45) -> 19.757 | K54: =IF('01.03.'!I45=0,"",'01.03.'!I45) -> 19.605 | L54: =IF(April!I45=0,"",April!I45) -> 19.605 | M54: =IF(Mai!I45=0,"",Mai!I45) -> 19.605 | O54: =IF('01.06.'!I45=0,"",'01.06.'!I45) -> 19.072 | P54: =IF(Juli!I45=0,"",Juli!I45) -> 19.072 | Q54: =IF(August!I45=0,"",August!I45) -> 19.072 | S54: =IF('01.09.'!I45=0,"",'01.09.'!I45) ->  | T54: =IF(Oktober!I45=0,"",Oktober!I45) ->  | U54: =IF(November!I45=0,"",November!I45) ->  | W54: 19.48
B55: zu finanzierendes Personal gemäß Stichtag in Stunden | E55: =IF(E54="","",E54*40) -> 706.92 | G55: =IF(G54="","",G54*40) -> 790.28 | H55: 790.28 | I55: 790.28 | K55: =IF(K54="","",K54*40) -> 784.2 | L55: 784.2 | M55: 784.2 | O55: =IF(O54="","",O54*40) -> 762.88 | P55: 762.88 | Q55: 762.88 | S55: =IF(S54="","",S54*40) ->  | T55: =IF(T54="","",T54*40) ->  | W55: 779.12
B58: Auswertung: Differenz zwischen dem tatsächlich eingesetzten Personal (Ist) und dem (finanzierten) Soll
B60: Differenz in Wochenstunden (Ist-Soll) | E60: =IF(E45="Daten!","",IF(ISERROR(E49-E55),"",E49-E55)) -> 0.33 | G60: =IF(G45="Daten!","",IF(ISERROR(G49-G55),"",G49-G55)) -> -3.28 | H60: -16.28 | I60: -1.28 | K60: =IF(K45="Daten!","",IF(ISERROR(K49-K55),"",K49-K55)) -> -8.2 | L60: -33.2 | M60: -2.2 | O60: =IF(O45="Daten!","",IF(ISERROR(O49-O55),"",O49-O55)) -> 7.12 | P60: -6.88 | Q60: 46.12 | S60: =IF(S45="Daten!","",IF(ISERROR(S49-S55),"",S49-S55)) ->  | W60: -2.01
B61: Spanne in % | E61: =IF(ISERROR(E60/E55),"",ROUND(E60/E55,4)) -> 0.0005 | G61: =IF(ISERROR(G60/G55),"",G60/G55) -> -0.004150427697 | H61: =IF(ISERROR(H60/H55),"",H60/H55) -> -0.02060029357 | I61: -0.001619679101 | K61: =IF(ISERROR(K60/K55),"",K60/K55) -> -0.01045651619 | L61: -0.04233613874 | M61: -0.002805406784 | O61: =IF(ISERROR(O60/O55),"",O60/O55) -> 0.009333053691 | P61: -0.009018456376 | Q61: 0.06045511745 | S61: =IF(ISERROR(S60/S55),"",S60/S55) ->  | W61: =IF(ISERROR(ROUND(SUM(G61:U61)/COUNT(G61:U61),4)),"",ROUND(SUM(G61:U61)/COUNT(G61:U61),4)) -> -0.0024
B62: Jahresdurchschnitt | G62: =G61 -> -0.004150427697 | H62: =SUM(G61:H61) -> -0.02475072126 | I62: =SUM(G61:I61) -> -0.02637040036 | K62: =SUM(G61:K61) -> -0.03682691656 | L62: =SUM(G61:L61) -> -0.0791630553 | M62: =SUM(G61:M61) -> -0.08196846208 | O62: =SUM(G61:O61) -> -0.07263540839 | P62: =SUM(G61:P61) -> -0.08165386477 | Q62: =SUM(G61:Q61) -> -0.02119874732 | S62: =SUM(G61:S61) -> -0.02119874732 | T62: =SUM(G61:T61) -> -0.02119874732 | U62: =SUM(G61:U61) -> -0.02119874732 | W62: =U62 -> -0.02119874732
B64: Quartalspuffer für Jahresausgleich | H64: =G5 -> 1. Quartal 2016 | I64: =IF(ISERROR(ROUND((SUM(G60:I60)/COUNT(G60:I60))/40,2)),"",ROUND((SUM(G60:I60)/COUNT(G60:I60))/40,2)) -> -0.17 | L64: =K5 -> 2. Quartal 2016 | M64: =IF(ISERROR(ROUND((SUM(K60:M60)/COUNT(K60:M60))/40,2)),"",ROUND((SUM(K60:M60)/COUNT(K60:M60))/40,2)) -> -0.36 | P64: =O5 -> 3. Quartal 2016 | Q64: =IF(ISERROR(ROUND((SUM(O60:Q60)/COUNT(O60:Q60))/40,2)),"",ROUND((SUM(O60:Q60)/COUNT(O60:Q60))/40,2)) -> 0.39 | T64: =S5 -> 4. Quartal 2016 | U64: =IF(ISERROR(ROUND((SUM(S60:U60)/COUNT(S60:U60))/40,2)),"",ROUND((SUM(S60:U60)/COUNT(S60:U60))/40,2)) ->  | W64: =IF(ISERROR(ROUND(SUM(G64:U64)/COUNT(G64:U64),4)),"",ROUND(SUM(G64:U64)/COUNT(G64:U64),4)) -> -0.0467
B67: Zusatzfinanzierungen aus Sonderprogrammen
E69: 4. Quartal | G69: ="1. Quartal "&Datenblatt!$H$10 -> 1. Quartal 2016 | K69: ="2. Quartal "&Datenblatt!$H$10 -> 2. Quartal 2016 | O69: ="3. Quartal "&Datenblatt!$H$10 -> 3. Quartal 2016 | S69: ="4. Quartal "&Datenblatt!$H$10 -> 4. Quartal 2016 | W69: Jahres-Ø | AA69: Anmerkungen
B70: lfd.Nr. | C70: Personal | E70: ='01.12.'!I6 -> 01.12.2015 | G70: =Januar!$I$6 -> 01.01.2016 | H70: =Februar!$I$6 -> 01.02.2016 | I70: ='01.03.'!$I$6 -> 01.03.2016 | K70: =April!I6 -> 01.04.2016 | L70: =Mai!I6 -> 01.05.2016 | M70: ='01.06.'!I6 -> 01.06.2016 | O70: =Juli!$I$6 -> 01.07.2016 | P70: =August!$I$6 -> 01.08.2016 | Q70: ='01.09.'!$I$6 -> 01.09.2016 | S70: =Oktober!$I$6 -> 01.10.2016 | T70: =November!$I$6 -> 01.11.2016 | U70: =Dezember!$I$6 -> 01.12.2016 | W70: =Datenblatt!H10 -> 2016
B72: Ergänzende Bundes- und Landesprojekte
B74: Bundesprogramm Sprach-Kitas | W74: =IF(ISERROR(ROUND(SUM(G74:U74)/COUNT(G74:U74),2)),"",ROUND(SUM(G74:U74)/COUNT(G74:U74),2)) ->  | Y74: =IF(AND(B74="",C74=""),"x","") -> 
C75: xyz | E75: 19.25 | G75: 19.25 | H75: 19.25 | I75: 19.25 | K75: 19.25 | L75: 19.25 | M75: 19.25 | O75: 19.25 | P75: 19.25 | Q75: 19.25 | S75: 19.25 | T75: 19.25 | U75: 19.25 | W75: 19.25 | Y75: =IF(AND(B75="",C75=""),"x","") -> 
W76: =IF(ISERROR(ROUND(SUM(G76:U76)/COUNT(G76:U76),2)),"",ROUND(SUM(G76:U76)/COUNT(G76:U76),2)) ->  | Y76: x
Y77: x
W78: =IF(ISERROR(ROUND(SUM(G78:U78)/COUNT(G78:U78),2)),"",ROUND(SUM(G78:U78)/COUNT(G78:U78),2)) ->  | Y78: =IF(AND(B78="",C78=""),"x","") -> x
Y79: x
W80: =IF(ISERROR(ROUND(SUM(G80:U80)/COUNT(G80:U80),2)),"",ROUND(SUM(G80:U80)/COUNT(G80:U80),2)) ->  | Y80: x
Y81: =IF(AND(B81="",C81=""),"x","") -> x
W82: =IF(ISERROR(ROUND(SUM(G82:U82)/COUNT(G82:U82),2)),"",ROUND(SUM(G82:U82)/COUNT(G82:U82),2)) ->  | Y82: =IF(AND(B82="",C82=""),"x","") -> x
Y83: x
Y84: x
B85: Landesprogramm-Sprachberatung
C86: Ravel | E86: 9.5 | G86: 11.75 | H86: =G86 -> 11.75 | I86: =H86 -> 11.75 | K86: 15.75 | L86: =K86 -> 15.75 | M86: 15.75 | O86: 14.25 | P86: 14.25 | Q86: 14.25 | S86: 15.25 | T86: 15.25 | U86: =T86 -> 15.25 | W86: 14.25
C87: Haydn | E87: 15 | G87: 3 | H87: 15 | I87: 3 | K87: 15 | L87: 15 | M87: 15 | O87: 30 | P87: 15 | Q87: 15 | S87: 15 | T87: 15 | U87: 15 | W87: =IF(ISERROR(ROUND(SUM(G87:U87)/COUNT(G87:U87),2)),"",ROUND(SUM(G87:U87)/COUNT(G87:U87),2)) -> 14.25
Y88: x
W89: =IF(ISERROR(ROUND(SUM(G89:U89)/COUNT(G89:U89),2)),"",ROUND(SUM(G89:U89)/COUNT(G89:U89),2)) ->  | Y89: x
W90: =IF(ISERROR(ROUND(SUM(G90:U90)/COUNT(G90:U90),2)),"",ROUND(SUM(G90:U90)/COUNT(G90:U90),2)) ->  | Y90: =IF(AND(B90="",C90=""),"x","") -> x
W91: =IF(ISERROR(ROUND(SUM(G91:U91)/COUNT(G91:U91),2)),"",ROUND(SUM(G91:U91)/COUNT(G91:U91),2)) ->  | Y91: x
W92: =IF(ISERROR(ROUND(SUM(G92:U92)/COUNT(G92:U92),2)),"",ROUND(SUM(G92:U92)/COUNT(G92:U92),2)) ->  | Y92: x
Y93: x
Y94: x
W95: =IF(ISERROR(ROUND(SUM(G95:U95)/COUNT(G95:U95),2)),"",ROUND(SUM(G95:U95)/COUNT(G95:U95),2)) ->  | Y95: x
B96: Konsultationskita Brandenburg (KOKIB)
C97: Mozart | G97: 4 | H97: =G97 -> 4 | I97: =H97 -> 4 | K97: 4 | L97: 4 | M97: 4 | O97: 4 | P97: 4 | Q97: 4 | S97: 4 | T97: 4 | U97: 4 | W97: 4
C98: Offenbach | G98: 4 | H98: =G98 -> 4 | I98: =H98 -> 4 | K98: 4 | L98: 4 | M98: 4 | O98: 4 | P98: 4 | Q98: 4 | S98: 4 | T98: 4 | U98: 4 | W98: 4
Y99: x
Y100: x
W101: =IF(ISERROR(ROUND(SUM(G101:U101)/COUNT(G101:U101),2)),"",ROUND(SUM(G101:U101)/COUNT(G101:U101),2)) ->  | Y101: =IF(AND(B101="",C101=""),"x","") -> x
W102: =IF(ISERROR(ROUND(SUM(G102:U102)/COUNT(G102:U102),2)),"",ROUND(SUM(G102:U102)/COUNT(G102:U102),2)) ->  | Y102: =IF(AND(B102="",C102=""),"x","") -> x
Y103: x
Y104: x
Y105: x
W106: =IF(ISERROR(ROUND(SUM(G106:U106)/COUNT(G106:U106),2)),"",ROUND(SUM(G106:U106)/COUNT(G106:U106),2)) ->  | Y106: x
B107: Landeskonzept xy
C108: Tschaikowsky | I108: 2 | K108: 2 | L108: 2 | M108: 2 | O108: 2 | P108: 6 | Q108: 6 | S108: 6 | T108: 6 | U108: 6 | W108: 4 | AC108: rote zahlen da ungedeckte Planung
C109: Max | I109: 4 | K109: 4 | L109: 4 | M109: 4 | O109: 4 | P109: 1 | Q109: 1 | S109: 1 | T109: 1 | U109: 1 | W109: =IF(ISERROR(ROUND(SUM(G109:U109)/COUNT(G109:U109),2)),"",ROUND(SUM(G109:U109)/COUNT(G109:U109),2)) -> 2.5
C110: Peter | I110: 4 | K110: 4 | L110: 4 | M110: 4 | O110: 4 | P110: 4 | Q110: 4 | S110: 4 | T110: 4 | U110: 4 | W110: =IF(ISERROR(ROUND(SUM(G110:U110)/COUNT(G110:U110),2)),"",ROUND(SUM(G110:U110)/COUNT(G110:U110),2)) -> 4 | Y110: =IF(AND(B110="",C110=""),"x","") -> 
W111: =IF(ISERROR(ROUND(SUM(G111:U111)/COUNT(G111:U111),2)),"",ROUND(SUM(G111:U111)/COUNT(G111:U111),2)) ->  | Y111: x
W112: =IF(ISERROR(ROUND(SUM(G112:U112)/COUNT(G112:U112),2)),"",ROUND(SUM(G112:U112)/COUNT(G112:U112),2)) ->  | Y112: x
Y113: =IF(AND(B113="",C113=""),"x","") -> x
Y114: x
W115: =IF(ISERROR(ROUND(SUM(G115:U115)/COUNT(G115:U115),2)),"",ROUND(SUM(G115:U115)/COUNT(G115:U115),2)) ->  | Y115: =IF(AND(B115="",C115=""),"x","") -> x
Y116: x
Y117: x | Z117: =IF(AND(B117="",C117=""),"","x") -> 
B120: Kompensatorische Srachförderung (sofern als separate Zuwendung finanziert)
C122: Pompadour | E122: 4 | G122: 2 | H122: =G122 -> 2 | I122: =H122 -> 2 | K122: 2 | L122: 2 | M122: 2 | O122: 2 | P122: 4 | Q122: 4 | S122: 4 | T122: 4 | U122: 4 | W122: =IF(ISERROR(ROUND(SUM(G122:U122)/COUNT(G122:U122),2)),"",ROUND(SUM(G122:U122)/COUNT(G122:U122),2)) -> 2.83 | Y122: =IF(AND(B122="",C122=""),"x","") ->  | AA122: ab 01/2014 = 2 h komp. Sprachförderung-Anpassung zum 01.08.2014 lt. Zuwendungsbescheid Juni 2014
C123: Orff | E123: 4 | G123: 2 | H123: =G123 -> 2 | I123: =H123 -> 2 | K123: 2 | L123: 2 | M123: 2 | O123: 2 | P123: 4 | Q123: 4 | S123: 4 | T123: 4 | U123: 4 | W123: 2.83
W124: =IF(ISERROR(ROUND(SUM(G124:U124)/COUNT(G124:U124),2)),"",ROUND(SUM(G124:U124)/COUNT(G124:U124),2)) ->  | Y124: x
Y125: x
Y126: =IF(AND(B126="",C126=""),"x","") -> x
Y127: x
W128: =IF(ISERROR(ROUND(SUM(G128:U128)/COUNT(G128:U128),2)),"",ROUND(SUM(G128:U128)/COUNT(G128:U128),2)) ->  | Y128: x
Y129: =IF(AND(B129="",C129=""),"x","") -> x
W130: =IF(ISERROR(ROUND(SUM(G130:U130)/COUNT(G130:U130),2)),"",ROUND(SUM(G130:U130)/COUNT(G130:U130),2)) ->  | Y130: x
Y131: x
B134: Landesprogramm Zeit für Anleitung (Gutschein)
B136: AnleiterIn | C136: Auszubildende/r
B137: Smetana | C137: Chopin | E137: 1 | G137: 1 | H137: 1 | I137: 1 | K137: 1 | L137: 1 | M137: 1 | O137: 0 | P137: 0 | Q137: 0 | S137: 0 | T137: 0 | U137: 0 | W137: =IF(ISERROR(ROUND(SUM(G137:U137)/COUNT(G137:U137),2)),"",ROUND(SUM(G137:U137)/COUNT(G137:U137),2)) -> 0.5 | Y137: =IF(AND(B137="",C137=""),"x","") -> 
B138: Pompadour | C138: Sibelius | E138: 1 | G138: 1 | H138: 1 | I138: 1 | K138: 1 | L138: 1 | M138: 1 | O138: 1 | P138: 1 | Q138: 1 | S138: 1 | T138: 1 | U138: 1 | W138: 1
B139: Wagner | C139: Tina | G139: 1 | H139: 1 | I139: 1 | K139: 1 | L139: 1 | M139: 1 | O139: 1 | P139: 1 | Q139: 1 | S139: 1 | T139: 1 | U139: 1 | W139: 1
B140: Tschaikowsky | C140: Ulli | E140: 1 | G140: 1 | H140: 1 | I140: 1 | K140: 1 | L140: 1 | M140: 1 | O140: 1 | P140: 1 | Q140: 1 | S140: 1 | T140: 1 | U140: 1 | W140: 1
Y141: x
Y142: x
Y143: x
Y144: x
Y145: x

Sheet Jahresdurchschnitt
B2: ="Anlage - Pädagogisch notwendiges Personal in der "&Datenblatt!E8&" "&Datenblatt!H10 -> Anlage - Pädagogisch notwendiges Personal in der Durchblick 2016
E5: 1. Quartal | F5: 2. Quartal | G5: 3. Quartal | H5: 4. Quartal | J5: Jahres- durchschnitt | L5: Anmerkungen
B6: lfd.Nr. | C6: Personal | E6: Mittelwert | F6: Mittelwert | G6: Mittelwert | H6: Mittelwert
B7: =IF(C7="","",1) -> 1 | C7: =IF(Personalstunden!C7="","",Personalstunden!C7) -> Mozart | E7: =IF($C7="","", IF(ISERROR(SUM(Personalstunden!G7:I7)/COUNT(Personalstunden!G7:I7)),"",SUM(Personalstunden!G7:I7)/COUNT(Personalstunden!G7:I7))) -> 37.66666667 | F7: =IF($C7="","",IF(ISERROR(SUM(Personalstunden!K7:M7)/COUNT(Personalstunden!K7:M7)),"",SUM(Personalstunden!K7:M7)/COUNT(Personalstunden!K7:M7))) -> 40 | G7: =IF($C7="","",IF(ISERROR(SUM(Personalstunden!O7:Q7)/COUNT(Personalstunden!O7:Q7)),"",SUM(Personalstunden!O7:Q7)/COUNT(Personalstunden!O7:Q7))) -> 38.33333333 | H7: =IF($C7="","",IF(ISERROR(SUM(Personalstunden!S7:U7)/COUNT(Personalstunden!S7:U7)),"",SUM(Personalstunden!S7:U7)/COUNT(Personalstunden!S7:U7))) ->  | J7: =IF(ISERROR(ROUND(SUM(E7:H7)/COUNT(E7:H7),2)),"",ROUND(SUM(E7:H7)/COUNT(E7:H7),2)) -> 38.67 | Y7: =IF(C7="","x","") -> 
B8: =IF(C8="","",MAX($B$7:B7)+1) -> 2 | C8: =IF(Personalstunden!C8="","",Personalstunden!C8) -> Beethoven | E8: =IF($C8="","", IF(ISERROR(SUM(Personalstunden!G8:I8)/COUNT(Personalstunden!G8:I8)),"",SUM(Personalstunden!G8:I8)/COUNT(Personalstunden!G8:I8))) -> 37.66666667 | F8: =IF($C8="","",IF(ISERROR(SUM(Personalstunden!K8:M8)/COUNT(Personalstunden!K8:M8)),"",SUM(Personalstunden!K8:M8)/COUNT(Personalstunden!K8:M8))) -> 40 | G8: =IF($C8="","",IF(ISERROR(SUM(Personalstunden!O8:Q8)/COUNT(Personalstunden!O8:Q8)),"",SUM(Personalstunden!O8:Q8)/COUNT(Personalstunden!O8:Q8))) -> 37 | H8: =IF($C8="","",IF(ISERROR(SUM(Personalstunden!S8:U8)/COUNT(Personalstunden!S8:U8)),"",SUM(Personalstunden!S8:U8)/COUNT(Personalstunden!S8:U8))) ->  | J8: =IF(ISERROR(ROUND(SUM(E8:H8)/COUNT(E8:H8),2)),"",ROUND(SUM(E8:H8)/COUNT(E8:H8),2)) -> 38.22 | Y8: =IF(C8="","x","") -> 
B9: =IF(C9="","",MAX($B$7:B8)+1) -> 3 | C9: =IF(Personalstunden!C9="","",Personalstunden!C9) -> Chopin | E9: =IF($C9="","", IF(ISERROR(SUM(Personalstunden!G9:I9)/COUNT(Personalstunden!G9:I9)),"",SUM(Personalstunden!G9:I9)/COUNT(Personalstunden!G9:I9))) -> 17.5 | F9: =IF($C9="","",IF(ISERROR(SUM(Personalstunden!K9:M9)/COUNT(Personalstunden!K9:M9)),"",SUM(Personalstunden!K9:M9)/COUNT(Personalstunden!K9:M9))) -> 17.5 | G9: =IF($C9="","",IF(ISERROR(SUM(Personalstunden!O9:Q9)/COUNT(Personalstunden!O9:Q9)),"",SUM(Personalstunden!O9:Q9)/COUNT(Personalstunden!O9:Q9))) -> 17.5 | H9: =IF($C9="","",IF(ISERROR(SUM(Personalstunden!S9:U9)/COUNT(Personalstunden!S9:U9)),"",SUM(Personalstunden!S9:U9)/COUNT(Personalstunden!S9:U9))) -> 17.5 | J9: 17.5
B10: =IF(C10="","",MAX($B$7:B9)+1) -> 4 | C10: =IF(Personalstunden!C10="","",Personalstunden!C10) -> Donizetti | E10: =IF($C10="","", IF(ISERROR(SUM(Personalstunden!G10:I10)/COUNT(Personalstunden!G10:I10)),"",SUM(Personalstunden!G10:I10)/COUNT(Personalstunden!G10:I10))) -> 37.66666667 | F10: =IF($C10="","",IF(ISERROR(SUM(Personalstunden!K10:M10)/COUNT(Personalstunden!K10:M10)),"",SUM(Personalstunden!K10:M10)/COUNT(Personalstunden!K10:M10))) -> 40 | G10: =IF($C10="","",IF(ISERROR(SUM(Personalstunden!O10:Q10)/COUNT(Personalstunden!O10:Q10)),"",SUM(Personalstunden!O10:Q10)/COUNT(Personalstunden!O10:Q10))) -> 37 | H10: =IF($C10="","",IF(ISERROR(SUM(Personalstunden!S10:U10)/COUNT(Personalstunden!S10:U10)),"",SUM(Personalstunden!S10:U10)/COUNT(Personalstunden!S10:U10))) ->  | J10: 38.22
B11: =IF(C11="","",MAX($B$7:B10)+1) -> 5 | C11: =IF(Personalstunden!C11="","",Personalstunden!C11) -> Bruckner | E11: =IF($C11="","", IF(ISERROR(SUM(Personalstunden!G11:I11)/COUNT(Personalstunden!G11:I11)),"",SUM(Personalstunden!G11:I11)/COUNT(Personalstunden!G11:I11))) -> 37.66666667 | F11: =IF($C11="","",IF(ISERROR(SUM(Personalstunden!K11:M11)/COUNT(Personalstunden!K11:M11)),"",SUM(Personalstunden!K11:M11)/COUNT(Personalstunden!K11:M11))) -> 40 | G11: =IF($C11="","",IF(ISERROR(SUM(Personalstunden!O11:Q11)/COUNT(Personalstunden!O11:Q11)),"",SUM(Personalstunden!O11:Q11)/COUNT(Personalstunden!O11:Q11))) -> 37 | H11: =IF($C11="","",IF(ISERROR(SUM(Personalstunden!S11:U11)/COUNT(Personalstunden!S11:U11)),"",SUM(Personalstunden!S11:U11)/COUNT(Personalstunden!S11:U11))) ->  | J11: 38.22
B12: =IF(C12="","",MAX($B$7:B11)+1) -> 6 | C12: =IF(Personalstunden!C12="","",Personalstunden!C12) -> Britten | E12: =IF($C12="","", IF(ISERROR(SUM(Personalstunden!G12:I12)/COUNT(Personalstunden!G12:I12)),"",SUM(Personalstunden!G12:I12)/COUNT(Personalstunden!G12:I12))) -> 37 | F12: =IF($C12="","",IF(ISERROR(SUM(Personalstunden!K12:M12)/COUNT(Personalstunden!K12:M12)),"",SUM(Personalstunden!K12:M12)/COUNT(Personalstunden!K12:M12))) -> 40 | G12: =IF($C12="","",IF(ISERROR(SUM(Personalstunden!O12:Q12)/COUNT(Personalstunden!O12:Q12)),"",SUM(Personalstunden!O12:Q12)/COUNT(Personalstunden!O12:Q12))) -> 37 | H12: =IF($C12="","",IF(ISERROR(SUM(Personalstunden!S12:U12)/COUNT(Personalstunden!S12:U12)),"",SUM(Personalstunden!S12:U12)/COUNT(Personalstunden!S12:U12))) ->  | J12: 38
B13: =IF(C13="","",MAX($B$7:B12)+1) -> 7 | C13: =IF(Personalstunden!C13="","",Personalstunden!C13) -> Händel | E13: =IF($C13="","", IF(ISERROR(SUM(Personalstunden!G13:I13)/COUNT(Personalstunden!G13:I13)),"",SUM(Personalstunden!G13:I13)/COUNT(Personalstunden!G13:I13))) -> 30 | F13: =IF($C13="","",IF(ISERROR(SUM(Personalstunden!K13:M13)/COUNT(Personalstunden!K13:M13)),"",SUM(Personalstunden!K13:M13)/COUNT(Personalstunden!K13:M13))) -> 30 | G13: =IF($C13="","",IF(ISERROR(SUM(Personalstunden!O13:Q13)/COUNT(Personalstunden!O13:Q13)),"",SUM(Personalstunden!O13:Q13)/COUNT(Personalstunden!O13:Q13))) -> 30 | H13: =IF($C13="","",IF(ISERROR(SUM(Personalstunden!S13:U13)/COUNT(Personalstunden!S13:U13)),"",SUM(Personalstunden!S13:U13)/COUNT(Personalstunden!S13:U13))) ->  | J13: 30
B14: =IF(C14="","",MAX($B$7:B13)+1) -> 8 | C14: =IF(Personalstunden!C14="","",Personalstunden!C14) -> Haydn | E14: =IF($C14="","", IF(ISERROR(SUM(Personalstunden!G14:I14)/COUNT(Personalstunden!G14:I14)),"",SUM(Personalstunden!G14:I14)/COUNT(Personalstunden!G14:I14))) -> 20 | F14: =IF($C14="","",IF(ISERROR(SUM(Personalstunden!K14:M14)/COUNT(Personalstunden!K14:M14)),"",SUM(Personalstunden!K14:M14)/COUNT(Personalstunden!K14:M14))) -> 1 | G14: =IF($C14="","",IF(ISERROR(SUM(Personalstunden!O14:Q14)/COUNT(Personalstunden!O14:Q14)),"",SUM(Personalstunden!O14:Q14)/COUNT(Personalstunden!O14:Q14))) -> 2.5 | H14: =IF($C14="","",IF(ISERROR(SUM(Personalstunden!S14:U14)/COUNT(Personalstunden!S14:U14)),"",SUM(Personalstunden!S14:U14)/COUNT(Personalstunden!S14:U14))) ->  | J14: 7.83 | L14: 19,25 h über Bundessprachprogramm, 19,75 h über LP-Sprachberatung
B15: =IF(C15="","",MAX($B$7:B14)+1) -> 9 | C15: =IF(Personalstunden!C15="","",Personalstunden!C15) -> Offenbach | E15: =IF($C15="","", IF(ISERROR(SUM(Personalstunden!G15:I15)/COUNT(Personalstunden!G15:I15)),"",SUM(Personalstunden!G15:I15)/COUNT(Personalstunden!G15:I15))) -> 35 | F15: =IF($C15="","",IF(ISERROR(SUM(Personalstunden!K15:M15)/COUNT(Personalstunden!K15:M15)),"",SUM(Personalstunden!K15:M15)/COUNT(Personalstunden!K15:M15))) -> 15 | G15: =IF($C15="","",IF(ISERROR(SUM(Personalstunden!O15:Q15)/COUNT(Personalstunden!O15:Q15)),"",SUM(Personalstunden!O15:Q15)/COUNT(Personalstunden!O15:Q15))) -> 5 | H15: =IF($C15="","",IF(ISERROR(SUM(Personalstunden!S15:U15)/COUNT(Personalstunden!S15:U15)),"",SUM(Personalstunden!S15:U15)/COUNT(Personalstunden!S15:U15))) ->  | J15: =IF(ISERROR(ROUND(SUM(E15:H15)/COUNT(E15:H15),2)),"",ROUND(SUM(E15:H15)/COUNT(E15:H15),2)) -> 18.33
B16: =IF(C16="","",MAX($B$7:B15)+1) -> 10 | C16: =IF(Personalstunden!C16="","",Personalstunden!C16) -> Rossini | E16: =IF($C16="","", IF(ISERROR(SUM(Personalstunden!G16:I16)/COUNT(Personalstunden!G16:I16)),"",SUM(Personalstunden!G16:I16)/COUNT(Personalstunden!G16:I16))) -> 19 | F16: =IF($C16="","",IF(ISERROR(SUM(Personalstunden!K16:M16)/COUNT(Personalstunden!K16:M16)),"",SUM(Personalstunden!K16:M16)/COUNT(Personalstunden!K16:M16))) -> 19 | G16: =IF($C16="","",IF(ISERROR(SUM(Personalstunden!O16:Q16)/COUNT(Personalstunden!O16:Q16)),"",SUM(Personalstunden!O16:Q16)/COUNT(Personalstunden!O16:Q16))) -> 19 | H16: =IF($C16="","",IF(ISERROR(SUM(Personalstunden!S16:U16)/COUNT(Personalstunden!S16:U16)),"",SUM(Personalstunden!S16:U16)/COUNT(Personalstunden!S16:U16))) -> 24 | J16: =IF(ISERROR(ROUND(SUM(E16:H16)/COUNT(E16:H16),2)),"",ROUND(SUM(E16:H16)/COUNT(E16:H16),2)) -> 20.25 | L16: ab 12/2009 Altersteilzeit - 19 h unverändert
B17: =IF(C17="","",MAX($B$7:B16)+1) -> 11 | C17: =IF(Personalstunden!C17="","",Personalstunden!C17) -> Ravel | E17: =IF($C17="","", IF(ISERROR(SUM(Personalstunden!G17:I17)/COUNT(Personalstunden!G17:I17)),"",SUM(Personalstunden!G17:I17)/COUNT(Personalstunden!G17:I17))) -> 20 | F17: =IF($C17="","",IF(ISERROR(SUM(Personalstunden!K17:M17)/COUNT(Personalstunden!K17:M17)),"",SUM(Personalstunden!K17:M17)/COUNT(Personalstunden!K17:M17))) -> 20.33333333 | G17: =IF($C17="","",IF(ISERROR(SUM(Personalstunden!O17:Q17)/COUNT(Personalstunden!O17:Q17)),"",SUM(Personalstunden!O17:Q17)/COUNT(Personalstunden!O17:Q17))) -> 20 | H17: =IF($C17="","",IF(ISERROR(SUM(Personalstunden!S17:U17)/COUNT(Personalstunden!S17:U17)),"",SUM(Personalstunden!S17:U17)/COUNT(Personalstunden!S17:U17))) ->  | J17: 20.11
B18: =IF(C18="","",MAX($B$7:B17)+1) -> 12 | C18: =IF(Personalstunden!C18="","",Personalstunden!C18) -> Salieri | E18: =IF($C18="","", IF(ISERROR(SUM(Personalstunden!G18:I18)/COUNT(Personalstunden!G18:I18)),"",SUM(Personalstunden!G18:I18)/COUNT(Personalstunden!G18:I18))) -> 38 | F18: =IF($C18="","",IF(ISERROR(SUM(Personalstunden!K18:M18)/COUNT(Personalstunden!K18:M18)),"",SUM(Personalstunden!K18:M18)/COUNT(Personalstunden!K18:M18))) -> 38 | G18: =IF($C18="","",IF(ISERROR(SUM(Personalstunden!O18:Q18)/COUNT(Personalstunden!O18:Q18)),"",SUM(Personalstunden!O18:Q18)/COUNT(Personalstunden!O18:Q18))) -> 37.66666667 | H18: =IF($C18="","",IF(ISERROR(SUM(Personalstunden!S18:U18)/COUNT(Personalstunden!S18:U18)),"",SUM(Personalstunden!S18:U18)/COUNT(Personalstunden!S18:U18))) -> 39 | J18: 38.17
B19: =IF(C19="","",MAX($B$7:B18)+1) -> 13 | C19: =IF(Personalstunden!C19="","",Personalstunden!C19) -> Verdi | E19: =IF($C19="","", IF(ISERROR(SUM(Personalstunden!G19:I19)/COUNT(Personalstunden!G19:I19)),"",SUM(Personalstunden!G19:I19)/COUNT(Personalstunden!G19:I19))) -> 25.33333333 | F19: =IF($C19="","",IF(ISERROR(SUM(Personalstunden!K19:M19)/COUNT(Personalstunden!K19:M19)),"",SUM(Personalstunden!K19:M19)/COUNT(Personalstunden!K19:M19))) -> 35 | G19: =IF($C19="","",IF(ISERROR(SUM(Personalstunden!O19:Q19)/COUNT(Personalstunden!O19:Q19)),"",SUM(Personalstunden!O19:Q19)/COUNT(Personalstunden!O19:Q19))) -> 35 | H19: =IF($C19="","",IF(ISERROR(SUM(Personalstunden!S19:U19)/COUNT(Personalstunden!S19:U19)),"",SUM(Personalstunden!S19:U19)/COUNT(Personalstunden!S19:U19))) ->  | J19: 31.78
B20: =IF(C20="","",MAX($B$7:B19)+1) -> 14 | C20: =IF(Personalstunden!C20="","",Personalstunden!C20) -> Vivaldi | E20: =IF($C20="","", IF(ISERROR(SUM(Personalstunden!G20:I20)/COUNT(Personalstunden!G20:I20)),"",SUM(Personalstunden!G20:I20)/COUNT(Personalstunden!G20:I20))) -> 30 | F20: =IF($C20="","",IF(ISERROR(SUM(Personalstunden!K20:M20)/COUNT(Personalstunden!K20:M20)),"",SUM(Personalstunden!K20:M20)/COUNT(Personalstunden!K20:M20))) -> 30 | G20: =IF($C20="","",IF(ISERROR(SUM(Personalstunden!O20:Q20)/COUNT(Personalstunden!O20:Q20)),"",SUM(Personalstunden!O20:Q20)/COUNT(Personalstunden!O20:Q20))) -> 30 | H20: =IF($C20="","",IF(ISERROR(SUM(Personalstunden!S20:U20)/COUNT(Personalstunden!S20:U20)),"",SUM(Personalstunden!S20:U20)/COUNT(Personalstunden!S20:U20))) ->  | J20: 30 | L20: Stundenreduzierung ab 10/2011 auf 30 Wo-Stunde
B21: =IF(C21="","",MAX($B$7:B20)+1) -> 15 | C21: =IF(Personalstunden!C21="","",Personalstunden!C21) -> Wagner | E21: =IF($C21="","", IF(ISERROR(SUM(Personalstunden!G21:I21)/COUNT(Personalstunden!G21:I21)),"",SUM(Personalstunden!G21:I21)/COUNT(Personalstunden!G21:I21))) -> 37.33333333 | F21: =IF($C21="","",IF(ISERROR(SUM(Personalstunden!K21:M21)/COUNT(Personalstunden!K21:M21)),"",SUM(Personalstunden!K21:M21)/COUNT(Personalstunden!K21:M21))) -> 39 | G21: =IF($C21="","",IF(ISERROR(SUM(Personalstunden!O21:Q21)/COUNT(Personalstunden!O21:Q21)),"",SUM(Personalstunden!O21:Q21)/COUNT(Personalstunden!O21:Q21))) -> 37.66666667 | H21: =IF($C21="","",IF(ISERROR(SUM(Personalstunden!S21:U21)/COUNT(Personalstunden!S21:U21)),"",SUM(Personalstunden!S21:U21)/COUNT(Personalstunden!S21:U21))) ->  | J21: 38
B22: =IF(C22="","",MAX($B$7:B21)+1) -> 16 | C22: =IF(Personalstunden!C22="","",Personalstunden!C22) -> Tschaikowsky | E22: =IF($C22="","", IF(ISERROR(SUM(Personalstunden!G22:I22)/COUNT(Personalstunden!G22:I22)),"",SUM(Personalstunden!G22:I22)/COUNT(Personalstunden!G22:I22))) -> 37.33333333 | F22: =IF($C22="","",IF(ISERROR(SUM(Personalstunden!K22:M22)/COUNT(Personalstunden!K22:M22)),"",SUM(Personalstunden!K22:M22)/COUNT(Personalstunden!K22:M22))) -> 36 | G22: =IF($C22="","",IF(ISERROR(SUM(Personalstunden!O22:Q22)/COUNT(Personalstunden!O22:Q22)),"",SUM(Personalstunden!O22:Q22)/COUNT(Personalstunden!O22:Q22))) -> 32 | H22: =IF($C22="","",IF(ISERROR(SUM(Personalstunden!S22:U22)/COUNT(Personalstunden!S22:U22)),"",SUM(Personalstunden!S22:U22)/COUNT(Personalstunden!S22:U22))) ->  | J22: 35.11 | L22: zuzüglich 5,5 h Sprachförderung
B23: =IF(C23="","",MAX($B$7:B22)+1) -> 17 | C23: =IF(Personalstunden!C23="","",Personalstunden!C23) -> Puccini | E23: =IF($C23="","", IF(ISERROR(SUM(Personalstunden!G23:I23)/COUNT(Personalstunden!G23:I23)),"",SUM(Personalstunden!G23:I23)/COUNT(Personalstunden!G23:I23))) -> 30 | F23: =IF($C23="","",IF(ISERROR(SUM(Personalstunden!K23:M23)/COUNT(Personalstunden!K23:M23)),"",SUM(Personalstunden!K23:M23)/COUNT(Personalstunden!K23:M23))) -> 30 | G23: =IF($C23="","",IF(ISERROR(SUM(Personalstunden!O23:Q23)/COUNT(Personalstunden!O23:Q23)),"",SUM(Personalstunden!O23:Q23)/COUNT(Personalstunden!O23:Q23))) -> 30 | H23: =IF($C23="","",IF(ISERROR(SUM(Personalstunden!S23:U23)/COUNT(Personalstunden!S23:U23)),"",SUM(Personalstunden!S23:U23)/COUNT(Personalstunden!S23:U23))) ->  | J23: 30 | L23: Ergänzung - Frau Kansy-ATZ - 19 Stunden
B24: =IF(C24="","",MAX($B$7:B23)+1) -> 18 | C24: =IF(Personalstunden!C24="","",Personalstunden!C24) -> Sibelius | E24: =IF($C24="","", IF(ISERROR(SUM(Personalstunden!G24:I24)/COUNT(Personalstunden!G24:I24)),"",SUM(Personalstunden!G24:I24)/COUNT(Personalstunden!G24:I24))) -> 17.5 | F24: =IF($C24="","",IF(ISERROR(SUM(Personalstunden!K24:M24)/COUNT(Personalstunden!K24:M24)),"",SUM(Personalstunden!K24:M24)/COUNT(Personalstunden!K24:M24))) -> 17.5 | G24: =IF($C24="","",IF(ISERROR(SUM(Personalstunden!O24:Q24)/COUNT(Personalstunden!O24:Q24)),"",SUM(Personalstunden!O24:Q24)/COUNT(Personalstunden!O24:Q24))) -> 37 | H24: =IF($C24="","",IF(ISERROR(SUM(Personalstunden!S24:U24)/COUNT(Personalstunden!S24:U24)),"",SUM(Personalstunden!S24:U24)/COUNT(Personalstunden!S24:U24))) ->  | J24: 24 | L24: Anrechnung mit 70% von 25 Wochenstunden
B25: =IF(C25="","",MAX($B$7:B24)+1) -> 19 | C25: =IF(Personalstunden!C25="","",Personalstunden!C25) -> Smetana | E25: =IF($C25="","", IF(ISERROR(SUM(Personalstunden!G25:I25)/COUNT(Personalstunden!G25:I25)),"",SUM(Personalstunden!G25:I25)/COUNT(Personalstunden!G25:I25))) -> 37.66666667 | F25: =IF($C25="","",IF(ISERROR(SUM(Personalstunden!K25:M25)/COUNT(Personalstunden!K25:M25)),"",SUM(Personalstunden!K25:M25)/COUNT(Personalstunden!K25:M25))) -> 40 | G25: =IF($C25="","",IF(ISERROR(SUM(Personalstunden!O25:Q25)/COUNT(Personalstunden!O25:Q25)),"",SUM(Personalstunden!O25:Q25)/COUNT(Personalstunden!O25:Q25))) -> 37 | H25: =IF($C25="","",IF(ISERROR(SUM(Personalstunden!S25:U25)/COUNT(Personalstunden!S25:U25)),"",SUM(Personalstunden!S25:U25)/COUNT(Personalstunden!S25:U25))) ->  | J25: 38.22
B26: =IF(C26="","",MAX($B$7:B25)+1) -> 20 | C26: =IF(Personalstunden!C26="","",Personalstunden!C26) -> Schumann | E26: =IF($C26="","", IF(ISERROR(SUM(Personalstunden!G26:I26)/COUNT(Personalstunden!G26:I26)),"",SUM(Personalstunden!G26:I26)/COUNT(Personalstunden!G26:I26))) -> 37.66666667 | F26: =IF($C26="","",IF(ISERROR(SUM(Personalstunden!K26:M26)/COUNT(Personalstunden!K26:M26)),"",SUM(Personalstunden!K26:M26)/COUNT(Personalstunden!K26:M26))) -> 40 | G26: =IF($C26="","",IF(ISERROR(SUM(Personalstunden!O26:Q26)/COUNT(Personalstunden!O26:Q26)),"",SUM(Personalstunden!O26:Q26)/COUNT(Personalstunden!O26:Q26))) -> 37 | H26: =IF($C26="","",IF(ISERROR(SUM(Personalstunden!S26:U26)/COUNT(Personalstunden!S26:U26)),"",SUM(Personalstunden!S26:U26)/COUNT(Personalstunden!S26:U26))) ->  | J26: 38.22
B27: =IF(C27="","",MAX($B$7:B26)+1) -> 21 | C27: =IF(Personalstunden!C27="","",Personalstunden!C27) -> Orff | E27: =IF($C27="","", IF(ISERROR(SUM(Personalstunden!G27:I27)/COUNT(Personalstunden!G27:I27)),"",SUM(Personalstunden!G27:I27)/COUNT(Personalstunden!G27:I27))) -> 33 | F27: =IF($C27="","",IF(ISERROR(SUM(Personalstunden!K27:M27)/COUNT(Personalstunden!K27:M27)),"",SUM(Personalstunden!K27:M27)/COUNT(Personalstunden!K27:M27))) -> 33 | G27: =IF($C27="","",IF(ISERROR(SUM(Personalstunden!O27:Q27)/COUNT(Personalstunden!O27:Q27)),"",SUM(Personalstunden!O27:Q27)/COUNT(Personalstunden!O27:Q27))) -> 36 | H27: =IF($C27="","",IF(ISERROR(SUM(Personalstunden!S27:U27)/COUNT(Personalstunden!S27:U27)),"",SUM(Personalstunden!S27:U27)/COUNT(Personalstunden!S27:U27))) ->  | J27: 34 | L27: zuzüglich 5,5 h Sprachförderung
B28: =IF(C28="","",MAX($B$7:B27)+1) -> 22 | C28: =IF(Personalstunden!C28="","",Personalstunden!C28) -> Pompadour | E28: =IF($C28="","", IF(ISERROR(SUM(Personalstunden!G28:I28)/COUNT(Personalstunden!G28:I28)),"",SUM(Personalstunden!G28:I28)/COUNT(Personalstunden!G28:I28))) -> 12.66666667 | F28: =IF($C28="","",IF(ISERROR(SUM(Personalstunden!K28:M28)/COUNT(Personalstunden!K28:M28)),"",SUM(Personalstunden!K28:M28)/COUNT(Personalstunden!K28:M28))) -> 0 | G28: =IF($C28="","",IF(ISERROR(SUM(Personalstunden!O28:Q28)/COUNT(Personalstunden!O28:Q28)),"",SUM(Personalstunden!O28:Q28)/COUNT(Personalstunden!O28:Q28))) -> 0 | H28: =IF($C28="","",IF(ISERROR(SUM(Personalstunden!S28:U28)/COUNT(Personalstunden!S28:U28)),"",SUM(Personalstunden!S28:U28)/COUNT(Personalstunden!S28:U28))) -> 0 | J28: 3.17 | L28: gekündigt zum 31.01.2014
B29: =IF(C29="","",MAX($B$7:B28)+1) -> 23 | C29: =IF(Personalstunden!C29="","",Personalstunden!C29) -> Diderot | E29: =IF($C29="","", IF(ISERROR(SUM(Personalstunden!G29:I29)/COUNT(Personalstunden!G29:I29)),"",SUM(Personalstunden!G29:I29)/COUNT(Personalstunden!G29:I29))) -> 37.66666667 | F29: =IF($C29="","",IF(ISERROR(SUM(Personalstunden!K29:M29)/COUNT(Personalstunden!K29:M29)),"",SUM(Personalstunden!K29:M29)/COUNT(Personalstunden!K29:M29))) -> 40 | G29: =IF($C29="","",IF(ISERROR(SUM(Personalstunden!O29:Q29)/COUNT(Personalstunden!O29:Q29)),"",SUM(Personalstunden!O29:Q29)/COUNT(Personalstunden!O29:Q29))) -> 37 | H29: =IF($C29="","",IF(ISERROR(SUM(Personalstunden!S29:U29)/COUNT(Personalstunden!S29:U29)),"",SUM(Personalstunden!S29:U29)/COUNT(Personalstunden!S29:U29))) ->  | J29: 38.22
B30: =IF(C30="","",MAX($B$7:B29)+1) -> 24 | C30: =IF(Personalstunden!C30="","",Personalstunden!C30) -> Max | E30: =IF($C30="","", IF(ISERROR(SUM(Personalstunden!G30:I30)/COUNT(Personalstunden!G30:I30)),"",SUM(Personalstunden!G30:I30)/COUNT(Personalstunden!G30:I30))) -> 25 | F30: =IF($C30="","",IF(ISERROR(SUM(Personalstunden!K30:M30)/COUNT(Personalstunden!K30:M30)),"",SUM(Personalstunden!K30:M30)/COUNT(Personalstunden!K30:M30))) -> 23.33333333 | G30: =IF($C30="","",IF(ISERROR(SUM(Personalstunden!O30:Q30)/COUNT(Personalstunden!O30:Q30)),"",SUM(Personalstunden!O30:Q30)/COUNT(Personalstunden!O30:Q30))) -> 20 | H30: =IF($C30="","",IF(ISERROR(SUM(Personalstunden!S30:U30)/COUNT(Personalstunden!S30:U30)),"",SUM(Personalstunden!S30:U30)/COUNT(Personalstunden!S30:U30))) ->  | J30: 22.78
B31: =IF(C31="","",MAX($B$7:B30)+1) -> 25 | C31: =IF(Personalstunden!C31="","",Personalstunden!C31) -> Peter | E31: =IF($C31="","", IF(ISERROR(SUM(Personalstunden!G31:I31)/COUNT(Personalstunden!G31:I31)),"",SUM(Personalstunden!G31:I31)/COUNT(Personalstunden!G31:I31))) -> 35 | F31: =IF($C31="","",IF(ISERROR(SUM(Personalstunden!K31:M31)/COUNT(Personalstunden!K31:M31)),"",SUM(Personalstunden!K31:M31)/COUNT(Personalstunden!K31:M31))) -> 35 | G31: =IF($C31="","",IF(ISERROR(SUM(Personalstunden!O31:Q31)/COUNT(Personalstunden!O31:Q31)),"",SUM(Personalstunden!O31:Q31)/COUNT(Personalstunden!O31:Q31))) -> 35 | H31: =IF($C31="","",IF(ISERROR(SUM(Personalstunden!S31:U31)/COUNT(Personalstunden!S31:U31)),"",SUM(Personalstunden!S31:U31)/COUNT(Personalstunden!S31:U31))) -> 0 | J31: 26.25
B32: =IF(C32="","",MAX($B$7:B31)+1) -> 26 | C32: =IF(Personalstunden!C32="","",Personalstunden!C32) -> Luise | E32: =IF($C32="","", IF(ISERROR(SUM(Personalstunden!G32:I32)/COUNT(Personalstunden!G32:I32)),"",SUM(Personalstunden!G32:I32)/COUNT(Personalstunden!G32:I32))) -> 0 | F32: =IF($C32="","",IF(ISERROR(SUM(Personalstunden!K32:M32)/COUNT(Personalstunden!K32:M32)),"",SUM(Personalstunden!K32:M32)/COUNT(Personalstunden!K32:M32))) -> 10 | G32: =IF($C32="","",IF(ISERROR(SUM(Personalstunden!O32:Q32)/COUNT(Personalstunden!O32:Q32)),"",SUM(Personalstunden!O32:Q32)/COUNT(Personalstunden!O32:Q32))) -> 36.66666667 | H32: =IF($C32="","",IF(ISERROR(SUM(Personalstunden!S32:U32)/COUNT(Personalstunden!S32:U32)),"",SUM(Personalstunden!S32:U32)/COUNT(Personalstunden!S32:U32))) ->  | J32: =IF(ISERROR(ROUND(SUM(E32:H32)/COUNT(E32:H32),2)),"",ROUND(SUM(E32:H32)/COUNT(E32:H32),2)) -> 15.56
B33: =IF(C33="","",MAX($B$7:B32)+1) ->  | C33: =IF(Personalstunden!C33="","",Personalstunden!C33) ->  | E33: =IF($C33="","", IF(ISERROR(SUM(Personalstunden!G33:I33)/COUNT(Personalstunden!G33:I33)),"",SUM(Personalstunden!G33:I33)/COUNT(Personalstunden!G33:I33))) ->  | F33: =IF($C33="","",IF(ISERROR(SUM(Personalstunden!K33:M33)/COUNT(Personalstunden!K33:M33)),"",SUM(Personalstunden!K33:M33)/COUNT(Personalstunden!K33:M33))) ->  | G33: =IF($C33="","",IF(ISERROR(SUM(Personalstunden!O33:Q33)/COUNT(Personalstunden!O33:Q33)),"",SUM(Personalstunden!O33:Q33)/COUNT(Personalstunden!O33:Q33))) ->  | H33: =IF($C33="","",IF(ISERROR(SUM(Personalstunden!S33:U33)/COUNT(Personalstunden!S33:U33)),"",SUM(Personalstunden!S33:U33)/COUNT(Personalstunden!S33:U33))) ->  | Y33: x
B34: =IF(C34="","",MAX($B$7:B33)+1) ->  | C34: =IF(Personalstunden!C34="","",Personalstunden!C34) ->  | E34: =IF($C34="","", IF(ISERROR(SUM(Personalstunden!G34:I34)/COUNT(Personalstunden!G34:I34)),"",SUM(Personalstunden!G34:I34)/COUNT(Personalstunden!G34:I34))) ->  | F34: =IF($C34="","",IF(ISERROR(SUM(Personalstunden!K34:M34)/COUNT(Personalstunden!K34:M34)),"",SUM(Personalstunden!K34:M34)/COUNT(Personalstunden!K34:M34))) ->  | G34: =IF($C34="","",IF(ISERROR(SUM(Personalstunden!O34:Q34)/COUNT(Personalstunden!O34:Q34)),"",SUM(Personalstunden!O34:Q34)/COUNT(Personalstunden!O34:Q34))) ->  | H34: =IF($C34="","",IF(ISERROR(SUM(Personalstunden!S34:U34)/COUNT(Personalstunden!S34:U34)),"",SUM(Personalstunden!S34:U34)/COUNT(Personalstunden!S34:U34))) ->  | Y34: x
B35: =IF(C35="","",MAX($B$7:B34)+1) ->  | C35: =IF(Personalstunden!C35="","",Personalstunden!C35) ->  | E35: =IF($C35="","", IF(ISERROR(SUM(Personalstunden!G35:I35)/COUNT(Personalstunden!G35:I35)),"",SUM(Personalstunden!G35:I35)/COUNT(Personalstunden!G35:I35))) ->  | F35: =IF($C35="","",IF(ISERROR(SUM(Personalstunden!K35:M35)/COUNT(Personalstunden!K35:M35)),"",SUM(Personalstunden!K35:M35)/COUNT(Personalstunden!K35:M35))) ->  | G35: =IF($C35="","",IF(ISERROR(SUM(Personalstunden!O35:Q35)/COUNT(Personalstunden!O35:Q35)),"",SUM(Personalstunden!O35:Q35)/COUNT(Personalstunden!O35:Q35))) ->  | H35: =IF($C35="","",IF(ISERROR(SUM(Personalstunden!S35:U35)/COUNT(Personalstunden!S35:U35)),"",SUM(Personalstunden!S35:U35)/COUNT(Personalstunden!S35:U35))) ->  | Y35: x
B36: =IF(C36="","",MAX($B$7:B35)+1) ->  | C36: =IF(Personalstunden!C36="","",Personalstunden!C36) ->  | E36: =IF($C36="","", IF(ISERROR(SUM(Personalstunden!G36:I36)/COUNT(Personalstunden!G36:I36)),"",SUM(Personalstunden!G36:I36)/COUNT(Personalstunden!G36:I36))) ->  | F36: =IF($C36="","",IF(ISERROR(SUM(Personalstunden!K36:M36)/COUNT(Personalstunden!K36:M36)),"",SUM(Personalstunden!K36:M36)/COUNT(Personalstunden!K36:M36))) ->  | G36: =IF($C36="","",IF(ISERROR(SUM(Personalstunden!O36:Q36)/COUNT(Personalstunden!O36:Q36)),"",SUM(Personalstunden!O36:Q36)/COUNT(Personalstunden!O36:Q36))) ->  | H36: =IF($C36="","",IF(ISERROR(SUM(Personalstunden!S36:U36)/COUNT(Personalstunden!S36:U36)),"",SUM(Personalstunden!S36:U36)/COUNT(Personalstunden!S36:U36))) ->  | Y36: x
B37: =IF(C37="","",MAX($B$7:B36)+1) ->  | C37: =IF(Personalstunden!C37="","",Personalstunden!C37) ->  | E37: =IF($C37="","", IF(ISERROR(SUM(Personalstunden!G37:I37)/COUNT(Personalstunden!G37:I37)),"",SUM(Personalstunden!G37:I37)/COUNT(Personalstunden!G37:I37))) ->  | F37: =IF($C37="","",IF(ISERROR(SUM(Personalstunden!K37:M37)/COUNT(Personalstunden!K37:M37)),"",SUM(Personalstunden!K37:M37)/COUNT(Personalstunden!K37:M37))) ->  | G37: =IF($C37="","",IF(ISERROR(SUM(Personalstunden!O37:Q37)/COUNT(Personalstunden!O37:Q37)),"",SUM(Personalstunden!O37:Q37)/COUNT(Personalstunden!O37:Q37))) ->  | H37: =IF($C37="","",IF(ISERROR(SUM(Personalstunden!S37:U37)/COUNT(Personalstunden!S37:U37)),"",SUM(Personalstunden!S37:U37)/COUNT(Personalstunden!S37:U37))) ->  | Y37: x
B38: =IF(C38="","",MAX($B$7:B37)+1) ->  | C38: =IF(Personalstunden!C38="","",Personalstunden!C38) ->  | E38: =IF($C38="","", IF(ISERROR(SUM(Personalstunden!G38:I38)/COUNT(Personalstunden!G38:I38)),"",SUM(Personalstunden!G38:I38)/COUNT(Personalstunden!G38:I38))) ->  | F38: =IF($C38="","",IF(ISERROR(SUM(Personalstunden!K38:M38)/COUNT(Personalstunden!K38:M38)),"",SUM(Personalstunden!K38:M38)/COUNT(Personalstunden!K38:M38))) ->  | G38: =IF($C38="","",IF(ISERROR(SUM(Personalstunden!O38:Q38)/COUNT(Personalstunden!O38:Q38)),"",SUM(Personalstunden!O38:Q38)/COUNT(Personalstunden!O38:Q38))) ->  | H38: =IF($C38="","",IF(ISERROR(SUM(Personalstunden!S38:U38)/COUNT(Personalstunden!S38:U38)),"",SUM(Personalstunden!S38:U38)/COUNT(Personalstunden!S38:U38))) ->  | Y38: x
B39: =IF(C39="","",MAX($B$7:B38)+1) ->  | C39: =IF(Personalstunden!C39="","",Personalstunden!C39) ->  | E39: =IF($C39="","", IF(ISERROR(SUM(Personalstunden!G39:I39)/COUNT(Personalstunden!G39:I39)),"",SUM(Personalstunden!G39:I39)/COUNT(Personalstunden!G39:I39))) ->  | F39: =IF($C39="","",IF(ISERROR(SUM(Personalstunden!K39:M39)/COUNT(Personalstunden!K39:M39)),"",SUM(Personalstunden!K39:M39)/COUNT(Personalstunden!K39:M39))) ->  | G39: =IF($C39="","",IF(ISERROR(SUM(Personalstunden!O39:Q39)/COUNT(Personalstunden!O39:Q39)),"",SUM(Personalstunden!O39:Q39)/COUNT(Personalstunden!O39:Q39))) ->  | H39: =IF($C39="","",IF(ISERROR(SUM(Personalstunden!S39:U39)/COUNT(Personalstunden!S39:U39)),"",SUM(Personalstunden!S39:U39)/COUNT(Personalstunden!S39:U39))) ->  | Y39: x
B40: =IF(C40="","",MAX($B$7:B39)+1) ->  | C40: =IF(Personalstunden!C40="","",Personalstunden!C40) ->  | E40: =IF($C40="","", IF(ISERROR(SUM(Personalstunden!G40:I40)/COUNT(Personalstunden!G40:I40)),"",SUM(Personalstunden!G40:I40)/COUNT(Personalstunden!G40:I40))) ->  | F40: =IF($C40="","",IF(ISERROR(SUM(Personalstunden!K40:M40)/COUNT(Personalstunden!K40:M40)),"",SUM(Personalstunden!K40:M40)/COUNT(Personalstunden!K40:M40))) ->  | G40: =IF($C40="","",IF(ISERROR(SUM(Personalstunden!O40:Q40)/COUNT(Personalstunden!O40:Q40)),"",SUM(Personalstunden!O40:Q40)/COUNT(Personalstunden!O40:Q40))) ->  | H40: =IF($C40="","",IF(ISERROR(SUM(Personalstunden!S40:U40)/COUNT(Personalstunden!S40:U40)),"",SUM(Personalstunden!S40:U40)/COUNT(Personalstunden!S40:U40))) ->  | Y40: x
B41: =IF(C41="","",MAX($B$7:B40)+1) ->  | C41: =IF(Personalstunden!C41="","",Personalstunden!C41) ->  | E41: =IF($C41="","", IF(ISERROR(SUM(Personalstunden!G41:I41)/COUNT(Personalstunden!G41:I41)),"",SUM(Personalstunden!G41:I41)/COUNT(Personalstunden!G41:I41))) ->  | F41: =IF($C41="","",IF(ISERROR(SUM(Personalstunden!K41:M41)/COUNT(Personalstunden!K41:M41)),"",SUM(Personalstunden!K41:M41)/COUNT(Personalstunden!K41:M41))) ->  | G41: =IF($C41="","",IF(ISERROR(SUM(Personalstunden!O41:Q41)/COUNT(Personalstunden!O41:Q41)),"",SUM(Personalstunden!O41:Q41)/COUNT(Personalstunden!O41:Q41))) ->  | H41: =IF($C41="","",IF(ISERROR(SUM(Personalstunden!S41:U41)/COUNT(Personalstunden!S41:U41)),"",SUM(Personalstunden!S41:U41)/COUNT(Personalstunden!S41:U41))) ->  | Y41: x
B42: =IF(C42="","",MAX($B$7:B41)+1) ->  | C42: =IF(Personalstunden!C42="","",Personalstunden!C42) ->  | E42: =IF($C42="","", IF(ISERROR(SUM(Personalstunden!G42:I42)/COUNT(Personalstunden!G42:I42)),"",SUM(Personalstunden!G42:I42)/COUNT(Personalstunden!G42:I42))) ->  | F42: =IF($C42="","",IF(ISERROR(SUM(Personalstunden!K42:M42)/COUNT(Personalstunden!K42:M42)),"",SUM(Personalstunden!K42:M42)/COUNT(Personalstunden!K42:M42))) ->  | G42: =IF($C42="","",IF(ISERROR(SUM(Personalstunden!O42:Q42)/COUNT(Personalstunden!O42:Q42)),"",SUM(Personalstunden!O42:Q42)/COUNT(Personalstunden!O42:Q42))) ->  | H42: =IF($C42="","",IF(ISERROR(SUM(Personalstunden!S42:U42)/COUNT(Personalstunden!S42:U42)),"",SUM(Personalstunden!S42:U42)/COUNT(Personalstunden!S42:U42))) ->  | Y42: x
B43: =IF(C43="","",MAX($B$7:B42)+1) ->  | C43: =IF(Personalstunden!C43="","",Personalstunden!C43) ->  | E43: =IF($C43="","", IF(ISERROR(SUM(Personalstunden!G43:I43)/COUNT(Personalstunden!G43:I43)),"",SUM(Personalstunden!G43:I43)/COUNT(Personalstunden!G43:I43))) ->  | F43: =IF($C43="","",IF(ISERROR(SUM(Personalstunden!K43:M43)/COUNT(Personalstunden!K43:M43)),"",SUM(Personalstunden!K43:M43)/COUNT(Personalstunden!K43:M43))) ->  | G43: =IF($C43="","",IF(ISERROR(SUM(Personalstunden!O43:Q43)/COUNT(Personalstunden!O43:Q43)),"",SUM(Personalstunden!O43:Q43)/COUNT(Personalstunden!O43:Q43))) ->  | H43: =IF($C43="","",IF(ISERROR(SUM(Personalstunden!S43:U43)/COUNT(Personalstunden!S43:U43)),"",SUM(Personalstunden!S43:U43)/COUNT(Personalstunden!S43:U43))) ->  | Y43: x
B44: =IF(C44="","",MAX($B$7:B43)+1) ->  | C44: =IF(Personalstunden!C44="","",Personalstunden!C44) ->  | E44: =IF($C44="","", IF(ISERROR(SUM(Personalstunden!G44:I44)/COUNT(Personalstunden!G44:I44)),"",SUM(Personalstunden!G44:I44)/COUNT(Personalstunden!G44:I44))) ->  | F44: =IF($C44="","",IF(ISERROR(SUM(Personalstunden!K44:M44)/COUNT(Personalstunden!K44:M44)),"",SUM(Personalstunden!K44:M44)/COUNT(Personalstunden!K44:M44))) ->  | G44: =IF($C44="","",IF(ISERROR(SUM(Personalstunden!O44:Q44)/COUNT(Personalstunden!O44:Q44)),"",SUM(Personalstunden!O44:Q44)/COUNT(Personalstunden!O44:Q44))) ->  | H44: =IF($C44="","",IF(ISERROR(SUM(Personalstunden!S44:U44)/COUNT(Personalstunden!S44:U44)),"",SUM(Personalstunden!S44:U44)/COUNT(Personalstunden!S44:U44))) ->  | Y44: x
C45: Ist-Stunden päd. Personal | E45: =IF(COUNT(E7:E44)=COUNT($B$7:$B$44),SUM(E7:E44),"Daten!") -> 763.3333333 | F45: =IF(COUNT(F7:F44)=COUNT($B$7:$B$44),SUM(F7:F44),"Daten!") -> 749.6666667 | G45: =IF(COUNT(G7:G44)=COUNT($B$7:$B$44),SUM(G7:G44),"Daten!") -> 758.3333333 | H45: =IF(COUNT(H7:H44)=COUNT($B$7:$B$44),SUM(H7:H44),"Daten!") -> Daten! | J45: =IF(ISERROR(ROUND(SUM(E45:H45)/COUNT(E45:H45),2)),"",ROUND(SUM(E45:H45)/COUNT(E45:H45),2)) -> 757.11
B47: =Personalstunden!B47 -> Pädagogisches Personal Ist | E47: =IF(ISERROR(SUM(Personalstunden!G47:I47)/COUNT(Personalstunden!G47:I47)),"",SUM(Personalstunden!G47:I47)/COUNT(Personalstunden!G47:I47)) -> 763.3333333 | F47: =IF(ISERROR(SUM(Personalstunden!K47:M47)/COUNT(Personalstunden!K47:M47)),"",SUM(Personalstunden!K47:M47)/COUNT(Personalstunden!K47:M47)) -> 749.6666667 | G47: =IF(ISERROR(SUM(Personalstunden!O47:Q47)/COUNT(Personalstunden!O47:Q47)),"",SUM(Personalstunden!O47:Q47)/COUNT(Personalstunden!O47:Q47)) -> 758.3333333 | H47: =IF(ISERROR(SUM(Personalstunden!S47:U47)/COUNT(Personalstunden!S47:U47)),"",SUM(Personalstunden!S47:U47)/COUNT(Personalstunden!S47:U47)) ->  | J47: =IF(ISERROR(ROUND(SUM(E47:H47)/COUNT(E47:H47),2)),"",ROUND(SUM(E47:H47)/COUNT(E47:H47),2)) -> 757.11
B48: =Personalstunden!B48 -> Pädagogischer Leitungsanteil | E48: =IF(ISERROR(SUM(Personalstunden!G48:I48)/COUNT(Personalstunden!G48:I48)),"",SUM(Personalstunden!G48:I48)/COUNT(Personalstunden!G48:I48)) -> 20 | F48: =IF(ISERROR(SUM(Personalstunden!K48:M48)/COUNT(Personalstunden!K48:M48)),"",SUM(Personalstunden!K48:M48)/COUNT(Personalstunden!K48:M48)) -> 20 | G48: =IF(ISERROR(SUM(Personalstunden!O48:Q48)/COUNT(Personalstunden!O48:Q48)),"",SUM(Personalstunden!O48:Q48)/COUNT(Personalstunden!O48:Q48)) -> 20 | H48: =IF(ISERROR(SUM(Personalstunden!S48:U48)/COUNT(Personalstunden!S48:U48)),"",SUM(Personalstunden!S48:U48)/COUNT(Personalstunden!S48:U48)) ->  | J48: 20
B49: =Personalstunden!B49 -> Pädagogisches Personal Ist - Gesamt | E49: =IF(E47="","",SUM(E47:E48)) -> 783.3333333 | F49: 769.6666667 | G49: 778.3333333 | H49: =IF(H47="","",SUM(H47:H48)) ->  | J49: 777.11
B50: =Personalstunden!B50 -> Resultierende VZ-Stellen (Ist) | E50: =IF(E49="","",E49/40) -> 19.58333333 | F50: 19.24166667 | G50: 19.45833333 | H50: =IF(H49="","",H49/40) ->  | J50: 19.43
B52: =Personalstunden!B52 -> Organisatorischer Leitungsanteil | E52: =IF(ISERROR(SUM(Personalstunden!G52:I52)/COUNT(Personalstunden!G52:I52)),"",SUM(Personalstunden!G52:I52)/COUNT(Personalstunden!G52:I52)) -> 10 | F52: =IF(ISERROR(SUM(Personalstunden!K52:M52)/COUNT(Personalstunden!K52:M52)),"",SUM(Personalstunden!K52:M52)/COUNT(Personalstunden!K52:M52)) -> 10 | G52: =IF(ISERROR(SUM(Personalstunden!O52:Q52)/COUNT(Personalstunden!O52:Q52)),"",SUM(Personalstunden!O52:Q52)/COUNT(Personalstunden!O52:Q52)) -> 10 | H52: =IF(ISERROR(SUM(Personalstunden!S52:U52)/COUNT(Personalstunden!S52:U52)),"",SUM(Personalstunden!S52:U52)/COUNT(Personalstunden!S52:U52)) -> 10 | J52: 10
B54: zu finanzierendes Personal gemäß Stichtag (VZ-Stellen - Soll) | E54: =IF(ISERROR(SUM(Personalstunden!G54:I54)/COUNT(Personalstunden!G54:I54)),"",SUM(Personalstunden!G54:I54)/COUNT(Personalstunden!G54:I54)) -> 19.757 | F54: =IF(ISERROR(SUM(Personalstunden!K54:M54)/COUNT(Personalstunden!K54:M54)),"",SUM(Personalstunden!K54:M54)/COUNT(Personalstunden!K54:M54)) -> 19.605 | G54: =IF(ISERROR(SUM(Personalstunden!O54:Q54)/COUNT(Personalstunden!O54:Q54)),"",SUM(Personalstunden!O54:Q54)/COUNT(Personalstunden!O54:Q54)) -> 19.072 | H54: =IF(ISERROR(SUM(Personalstunden!S54:U54)/COUNT(Personalstunden!S54:U54)),"",SUM(Personalstunden!S54:U54)/COUNT(Personalstunden!S54:U54)) ->  | J54: 19.48
B55: zu finanzierendes Personal gemäß Stichtag in Stunden | E55: =IF(ISERROR(SUM(Personalstunden!G55:I55)/COUNT(Personalstunden!G55:I55)),"",SUM(Personalstunden!G55:I55)/COUNT(Personalstunden!G55:I55)) -> 790.28 | F55: =IF(ISERROR(SUM(Personalstunden!K55:M55)/COUNT(Personalstunden!K55:M55)),"",SUM(Personalstunden!K55:M55)/COUNT(Personalstunden!K55:M55)) -> 784.2 | G55: =IF(ISERROR(SUM(Personalstunden!O55:Q55)/COUNT(Personalstunden!O55:Q55)),"",SUM(Personalstunden!O55:Q55)/COUNT(Personalstunden!O55:Q55)) -> 762.88 | H55: =IF(ISERROR(SUM(Personalstunden!S55:U55)/COUNT(Personalstunden!S55:U55)),"",SUM(Personalstunden!S55:U55)/COUNT(Personalstunden!S55:U55)) ->  | J55: 779.12
B58: Auswertung: Differenz zwischen dem tatsächlich eingesetzten Personal (Ist) und dem (finanzierten) Soll
B60: =Personalstunden!B60 -> Differenz in Wochenstunden (Ist-Soll) | E60: =IF(E45="Daten!","",IF(ISERROR(E49-E55),"",E49-E55)) -> -6.946666667 | F60: =IF(F45="Daten!","",IF(ISERROR(F49-F55),"",F49-F55)) -> -14.53333333 | G60: 15.45333333 | J60: =IF(J45="","",Personalstunden!W60) -> -2.01
B61: =Personalstunden!B61 -> Spanne in % | E61: =IF(ISERROR(E60/E55),"",E60/E55) -> -0.008790133455 | F61: =IF(ISERROR(F60/F55),"",F60/F55) -> -0.01853268724 | G61: =IF(ISERROR(G60/G55),"",G60/G55) -> 0.02025657159 | H61: =IF(ISERROR(H60/H55),"",H60/H55) ->  | J61: =Personalstunden!W61 -> -0.0024
B62: =Personalstunden!B62 -> Jahresdurchschnitt | E62: =IF(ISERROR(SUM(Personalstunden!$G$61:I$61)),"",SUM(Personalstunden!$G$61:I$61)) -> -0.02637040036 | F62: =IF(ISERROR(SUM(Personalstunden!$G$61:M$61)),"",SUM(Personalstunden!$G$61:M$61)) -> -0.08196846208 | G62: =IF(ISERROR(SUM(Personalstunden!$G$61:Q$61)),"",SUM(Personalstunden!$G$61:Q$61)) -> -0.02119874732 | H62: =IF(ISERROR(SUM(Personalstunden!$G$61:U$61)),"",SUM(Personalstunden!$G$61:U$61)) -> -0.02119874732 | J62: =Personalstunden!W62 -> -0.02119874732
B64: =Personalstunden!B64 -> Quartalspuffer für Jahresausgleich | E64: =IF(ISERROR(ROUND(SUM(E60)/40,2)),"",ROUND(SUM(E60)/40,2)) -> -0.17 | F64: =IF(ISERROR(ROUND(SUM(F60)/40,2)),"",ROUND(SUM(F60)/40,2)) -> -0.36 | G64: =IF(ISERROR(ROUND(SUM(G60)/40,2)),"",ROUND(SUM(G60)/40,2)) -> 0.39 | H64: =IF(ISERROR(ROUND(SUM(H60)/40,2)),"",ROUND(SUM(H60)/40,2)) -> 0 | J64: =IF(ISERROR(ROUND(SUM(E64:H64)/COUNT(E64:H64),2)),"",ROUND(SUM(E64:H64)/COUNT(E64:H64),2)) -> -0.04
B67: Zusatzfinanzierungen
B69: =Personalstunden!B72 -> Ergänzende Bundes- und Landesprojekte | E69: =SUM(Personalstunden!G74:G117) -> 42 | F69: =SUM(Personalstunden!K74:K117) -> 68 | G69: =SUM(Personalstunden!O74:O117) -> 81.5 | H69: =SUM(Personalstunden!S74:S117) -> 68.5 | J69: =IF(ISERROR(ROUND(SUM(E69:H69)/COUNT(E69:H69),2)),"",ROUND(SUM(E69:H69)/COUNT(E69:H69),2)) -> 65
B71: =Personalstunden!B120 -> Kompensatorische Srachförderung (sofern als separate Zuwendung finanziert) | E71: =SUM(Personalstunden!G122:G131) -> 4 | F71: =SUM(Personalstunden!K122:K131) -> 4 | G71: =SUM(Personalstunden!O122:O131) -> 4 | H71: =SUM(Personalstunden!J122:J131) -> 0 | J71: =IF(ISERROR(ROUND(SUM(E71:H71)/COUNT(E71:H71),2)),"",ROUND(SUM(E71:H71)/COUNT(E71:H71),2)) -> 3
B73: =Personalstunden!B134 -> Landesprogramm Zeit für Anleitung (Gutschein) | E73: =SUM(Personalstunden!G137:G145) -> 4 | F73: =SUM(Personalstunden!K137:K145) -> 4 | G73: =SUM(Personalstunden!O137:O145) -> 3 | H73: =SUM(Personalstunden!J137:J145) -> 0 | J73: =IF(ISERROR(ROUND(SUM(E73:H73)/COUNT(E73:H73),2)),"",ROUND(SUM(E73:H73)/COUNT(E73:H73),2)) -> 2.75
